Workbook

Sheet gl. til nyt niveau (hidden)
B1: 1.398079
D2: Nyt grundbeløb | E2: Nyt grundbeløb
A3: Grundbeløb pr. 1/10-1984 | B3: I alt pr. 1. april 1999 inkl. %regulering | D3: pr. 31/3-2000 | E3: pr. 31/3-2000
D4: ekskl. afrunding | E4: inkl. afrunding
F5: beløb
B6: pr. gang/år | C6: pr. måned | F6: +/-
A7: 1.63 | B7: =IF(A7<1000,$B$1*A7,ROUND($B$1*A7,0)) -> 2.27886877 | D7: =B7 -> 2.27886877 | E7: =IF(D7<1000,D7,ROUND(D7,-2)) -> 2.27886877
A8: 5 | B8: 6.990395 | D8: =B8 -> 6.990395 | E8: 6.990395
A9: 5.8 | B9: 8.1088582 | D9: 8.1088582 | E9: 8.1088582
A10: 9 | B10: 12.582711 | D10: 12.582711 | E10: 12.582711
A11: 10.5 | B11: 14.6798295 | D11: 14.6798295 | E11: 14.6798295
A12: 12.22 | B12: 17.08452538 | D12: 17.08452538 | E12: 17.08452538
A13: 12.65 | B13: 17.68569935 | D13: 17.68569935 | E13: 17.68569935
A14: 13.39 | B14: 18.72027781 | D14: 18.72027781 | E14: 18.72027781
A15: 13.75 | B15: 19.22358625 | D15: 19.22358625 | E15: 19.22358625
A16: 14.46 | B16: 20.21622234 | D16: 20.21622234 | E16: 20.21622234
A17: 15.2 | B17: 21.2508008 | D17: 21.2508008 | E17: 21.2508008
A18: 15.5 | B18: 21.6702245 | D18: 21.6702245 | E18: 21.6702245
A19: 17 | B19: 23.767343 | D19: 23.767343 | E19: 23.767343
A20: 18.5 | B20: 25.8644615 | D20: 25.8644615 | E20: 25.8644615
A21: 19 | B21: 26.563501 | D21: 26.563501 | E21: 26.563501
A22: 21 | B22: 29.359659 | D22: 29.359659 | E22: 29.359659
A23: 23 | B23: 32.155817 | D23: 32.155817 | E23: 32.155817
A24: 24.97 | B24: 34.91003263 | D24: 34.91003263 | E24: 34.91003263
A25: 28 | B25: 39.146212 | D25: 39.146212 | E25: 39.146212
A26: 30 | B26: 41.94237 | D26: 41.94237 | E26: 41.94237
A27: 33.29 | B27: 46.54204991 | D27: 46.54204991 | E27: 46.54204991
A28: 42 | B28: 58.719318 | D28: 58.719318 | E28: 58.719318
A29: 61.26 | B29: 85.64631954 | D29: 85.64631954 | E29: 85.64631954
A30: 62 | B30: 86.680898 | D30: 86.680898 | E30: 86.680898
A31: 68.32 | B31: 95.51675728 | D31: 95.51675728 | E31: 95.51675728
A32: 75.13 | B32: 105.0376753 | D32: 105.0376753 | E32: 105.0376753
A33: 80.38 | B33: 112.37759 | D33: 112.37759 | E33: 112.37759
A34: 136.64 | B34: 191.0335146 | D34: =B34 -> 191.0335146 | E34: 191.0335146
A35: 143.99 | B35: 201.3093952 | D35: =B35 -> 201.3093952 | E35: 201.3093952
A36: 150.61 | B36: 210.5646782 | D36: 210.5646782 | E36: 210.5646782
A37: 164 | B37: 229.284956 | D37: 229.284956 | E37: 229.284956
A38: 170 | B38: 237.67343 | D38: 237.67343 | E38: 237.67343
A39: 190 | B39: 265.63501 | D39: 265.63501 | E39: =IF(D39<1000,D39,ROUND(D39,-2)) -> 265.63501
A40: 195 | B40: 272.625405 | D40: 272.625405 | E40: 272.625405
A41: 202 | B41: 282.411958 | D41: 282.411958 | E41: 282.411958
A42: 260 | B42: 363.50054 | D42: 363.50054 | E42: 363.50054
A43: 278 | B43: 388.665962 | D43: 388.665962 | E43: 388.665962
A44: 300.84 | B44: 420.5980864 | D44: 420.5980864 | E44: 420.5980864
A45: 350 | B45: 489.32765 | D45: 489.32765 | E45: 489.32765
A46: 380 | B46: 531.27002 | D46: 531.27002 | E46: 531.27002
A47: 398.95 | B47: 557.763617 | D47: 557.763617 | E47: 557.763617
A48: 420 | B48: 587.19318 | D48: 587.19318 | E48: 587.19318
A49: 465 | B49: 650.106735 | D49: 650.106735 | E49: 650.106735
A50: 490 | B50: 685.05871 | D50: 685.05871 | E50: 685.05871
A51: 502 | B51: 701.835658 | D51: 701.835658 | E51: 701.835658
A52: 559 | B52: 781.526161 | D52: 781.526161 | E52: 781.526161
A53: 597 | B53: 834.653163 | D53: 834.653163 | E53: 834.653163
A54: 700 | B54: 978.6553 | C54: =VALUE(B54)/12 -> 81.55460833 | D54: 978.6553 | E54: =IF(D54<1000,D54,ROUND(D54,-2)) -> 978.6553 | F54: =E54-D54 -> 0
A55: 750 | B55: 1048.55925 | C55: 87.3799375 | D55: 1048.55925 | E55: =IF(D55<1000,D55,ROUND(D55,-2)) -> 1000 | F55: -48.55925
A56: 800 | B56: 1118.4632 | C56: 93.20526667 | D56: 1118.4632 | E56: =IF(D56<1000,D56,ROUND(D56,-2)) -> 1100 | F56: -18.4632
A57: 842.75 | B57: 1178.231077 | C57: 98.1859231 | D57: 1178.231077 | E57: 1200 | F57: 21.76892275
A58: 868 | B58: 1213.532572 | C58: 101.1277143 | D58: 1213.532572 | E58: 1200 | F58: -13.532572
A59: 917.14 | B59: 1282.234174 | C59: 106.8528478 | D59: =B59 -> 1282.234174 | E59: 1300 | F59: 17.76582594
A60: 920 | B60: 1286.23268 | C60: 107.1860567 | D60: 1286.23268 | E60: 1300 | F60: 13.76732
A61: 925 | B61: 1293.223075 | C61: 107.7685896 | D61: 1293.223075 | E61: 1300 | F61: 6.776925
A62: 950 | B62: =IF(A62<1000,$B$1*A62,ROUND($B$1*A62,0)) -> 1328.17505 | C62: 110.6812542 | D62: 1328.17505 | E62: 1300 | F62: -28.17505
A63: 1000 | B63: =IF(A63<1000,$B$1*A63,ROUND($B$1*A63,0)) -> 1398 | C63: 116.5 | D63: 1398 | E63: 1400 | F63: 2
A64: 1050 | B64: =IF(A64<1000,$B$1*A64,ROUND($B$1*A64,0)) -> 1468 | C64: 122.3333333 | D64: 1468 | E64: 1500 | F64: 32
A65: 1100 | B65: =IF(A65<1000,$B$1*A65,ROUND($B$1*A65,0)) -> 1538 | C65: 128.1666667 | D65: 1538 | E65: 1500 | F65: -38
A66: 1200 | B66: 1678 | C66: 139.8333333 | D66: 1678 | E66: 1700 | F66: 22
A67: 1245 | B67: 1741 | C67: 145.0833333 | D67: =B67 -> 1741 | E67: 1700 | F67: =E67-D67 -> -41
A68: 1300 | B68: 1818 | C68: 151.5 | D68: 1818 | E68: 1800 | F68: -18
A69: 1327 | B69: 1855 | C69: 154.5833333 | D69: 1855 | E69: 1900 | F69: 45
A70: 1400 | B70: 1957 | C70: 163.0833333 | D70: 1957 | E70: 2000 | F70: 43
A71: 1500 | B71: 2097 | C71: 174.75 | D71: 2097 | E71: 2100 | F71: 3
A72: 1600 | B72: 2237 | C72: 186.4166667 | D72: 2237 | E72: 2200 | F72: -37
A73: 1700 | B73: 2377 | C73: 198.0833333 | D73: 2377 | E73: 2400 | F73: 23
A74: 1750 | B74: 2447 | C74: 203.9166667 | D74: 2447 | E74: 2400 | F74: -47
A75: 1800 | B75: 2517 | C75: 209.75 | D75: 2517 | E75: 2500 | F75: -17
A76: 1900 | B76: 2656 | C76: 221.3333333 | D76: 2656 | E76: 2700 | F76: 44
A77: 2000 | B77: 2796 | C77: 233 | D77: 2796 | E77: 2800 | F77: 4
A78: 2050 | B78: 2866 | C78: 238.8333333 | D78: 2866 | E78: 2900 | F78: 34
A79: 2100 | B79: 2936 | C79: 244.6666667 | D79: 2936 | E79: 2900 | F79: -36
A80: 2145 | B80: 2999 | C80: 249.9166667 | D80: 2999 | E80: 3000 | F80: 1
A81: 2150 | B81: 3006 | C81: 250.5 | D81: 3006 | E81: 3000 | F81: -6
A82: 2200 | B82: 3076 | C82: 256.3333333 | D82: 3076 | E82: 3100 | F82: 24
A83: 2300 | B83: 3216 | C83: 268 | D83: 3216 | E83: 3200 | F83: -16
A84: 2400 | B84: 3355 | C84: 279.5833333 | D84: 3355 | E84: 3400 | F84: 45
A85: 2450 | B85: 3425 | C85: 285.4166667 | D85: 3425 | E85: 3400 | F85: -25
A86: 2500 | B86: 3495 | C86: 291.25 | D86: 3495 | E86: 3500 | F86: 5
A87: 2600 | B87: 3635 | C87: 302.9166667 | D87: 3635 | E87: 3600 | F87: -35
A88: 2700 | B88: 3775 | C88: 314.5833333 | D88: 3775 | E88: 3800 | F88: 25
A89: 2730 | B89: 3817 | C89: 318.0833333 | D89: 3817 | E89: 3800 | F89: -17
A90: 2800 | B90: 3915 | C90: 326.25 | D90: 3915 | E90: 3900 | F90: -15
A91: 2900 | B91: 4054 | C91: 337.8333333 | D91: 4054 | E91: 4100 | F91: 46
A92: 3000 | B92: 4194 | C92: 349.5 | D92: 4194 | E92: 4200 | F92: 6
A93: 3100 | B93: 4334 | C93: 361.1666667 | D93: 4334 | E93: 4300 | F93: -34
A94: 3200 | B94: 4474 | C94: 372.8333333 | D94: 4474 | E94: 4500 | F94: 26
A95: 3300 | B95: 4614 | C95: 384.5 | D95: 4614 | E95: 4600 | F95: -14
A96: 3400 | B96: 4753 | C96: 396.0833333 | D96: 4753 | E96: 4800 | F96: 47
A97: 3500 | B97: 4893 | C97: 407.75 | D97: 4893 | E97: 4900 | F97: 7
A98: 3600 | B98: 5033 | C98: 419.4166667 | D98: 5033 | E98: 5000 | F98: -33
A99: 3700 | B99: 5173 | C99: 431.0833333 | D99: 5173 | E99: 5200 | F99: 27
A100: 3800 | B100: 5313 | C100: 442.75 | D100: 5313 | E100: 5300 | F100: -13
A101: 3900 | B101: 5453 | C101: 454.4166667 | D101: 5453 | E101: 5500 | F101: 47
A102: 4000 | B102: 5592 | C102: 466 | D102: 5592 | E102: 5600 | F102: 8
A103: 4100 | B103: 5732 | C103: 477.6666667 | D103: 5732 | E103: 5700 | F103: -32
A104: 4200 | B104: 5872 | C104: 489.3333333 | D104: 5872 | E104: 5900 | F104: 28
A105: 4226.1 | B105: 5908 | C105: 492.3333333 | D105: 5908 | E105: 5900 | F105: -8
A106: 4300 | B106: 6012 | C106: 501 | D106: 6012 | E106: 6000 | F106: -12
A107: 4400 | B107: 6152 | C107: 512.6666667 | D107: 6152 | E107: 6200 | F107: 48
A108: 4430 | B108: 6193 | C108: 516.0833333 | D108: 6193 | E108: 6200 | F108: 7
A109: 4500 | B109: 6291 | C109: 524.25 | D109: 6291 | E109: 6300 | F109: 9
A110: 4600 | B110: 6431 | C110: 535.9166667 | D110: 6431 | E110: 6400 | F110: -31
A111: 4700 | B111: 6571 | C111: 547.5833333 | D111: 6571 | E111: 6600 | F111: 29
A112: 1770 | B112: 2475 | C112: 206.25 | D112: 2475 | E112: 2500 | F112: 25
A113: 4800 | B113: 6711 | C113: 559.25 | D113: 6711 | E113: 6700 | F113: -11
A114: 4900 | B114: 6851 | C114: 570.9166667 | D114: 6851 | E114: 6900 | F114: 49
A115: 4930 | B115: 6893 | C115: 574.4166667 | D115: 6893 | E115: 6900 | F115: 7
A116: 5000 | B116: 6990 | C116: 582.5 | D116: 6990 | E116: 7000 | F116: 10
A117: 5100 | B117: 7130 | C117: 594.1666667 | D117: 7130 | E117: 7100 | F117: -30
A118: 5200 | B118: 7270 | C118: =VALUE(B118)/12 -> 605.8333333 | D118: 7270 | E118: 7300 | F118: 30
A119: 5300 | B119: 7410 | C119: 617.5 | D119: 7410 | E119: 7400 | F119: -10
A120: 5318 | B120: 7435 | C120: 619.5833333 | D120: 7435 | E120: =IF(D120<1000,D120,ROUND(D120,-2)) -> 7400 | F120: -35
A121: 5400 | B121: 7550 | C121: 629.1666667 | D121: 7550 | E121: 7600 | F121: 50
A122: 5420.91 | B122: 7579 | C122: 631.5833333 | D122: 7579 | E122: 7600 | F122: 21
A123: 5500 | B123: 7689 | C123: 640.75 | D123: =B123 -> 7689 | E123: 7700 | F123: =E123-D123 -> 11
A124: 5600 | B124: 7829 | C124: 652.4166667 | D124: 7829 | E124: 7800 | F124: -29
A125: 5700 | B125: 7969 | C125: 664.0833333 | D125: 7969 | E125: 8000 | F125: 31
A126: 5770.78 | B126: 8068 | C126: 672.3333333 | D126: 8068 | E126: 8100 | F126: 32
A127: 5800 | B127: 8109 | C127: 675.75 | D127: 8109 | E127: 8100 | F127: -9
A128: 5900 | B128: 8249 | C128: 687.4166667 | D128: 8249 | E128: 8200 | F128: -49
A129: 6000 | B129: =IF(A129<1000,$B$1*A129,ROUND($B$1*A129,0)) -> 8388 | C129: 699 | D129: 8388 | E129: 8400 | F129: 12
A130: 6078 | B130: 8498 | C130: 708.1666667 | D130: 8498 | E130: 8500 | F130: 2
A131: 6100 | B131: 8528 | C131: 710.6666667 | D131: 8528 | E131: 8500 | F131: -28
A132: 6140 | B132: 8584 | C132: 715.3333333 | D132: 8584 | E132: 8600 | F132: 16
A133: 6200 | B133: 8668 | C133: 722.3333333 | D133: 8668 | E133: 8700 | F133: 32
A134: 6290.15 | B134: 8794 | C134: 732.8333333 | D134: 8794 | E134: 8800 | F134: 6
A135: 6300 | B135: 8808 | C135: 734 | D135: 8808 | E135: 8800 | F135: -8
A136: 6400 | B136: 8948 | C136: 745.6666667 | D136: 8948 | E136: 8900 | F136: -48
A137: 6500 | B137: 9088 | C137: 757.3333333 | D137: 9088 | E137: 9100 | F137: 12
A138: 6600 | B138: 9227 | C138: 768.9166667 | D138: 9227 | E138: 9200 | F138: -27
A139: 6700 | B139: 9367 | C139: 780.5833333 | D139: 9367 | E139: 9400 | F139: 33
A140: 6743.33 | B140: 9428 | C140: 785.6666667 | D140: 9428 | E140: 9400 | F140: -28
A141: 6800 | B141: 9507 | C141: 792.25 | D141: 9507 | E141: 9500 | F141: -7
A142: 6900 | B142: 9647 | C142: 803.9166667 | D142: 9647 | E142: 9600 | F142: -47
A143: 7000 | B143: 9787 | C143: 815.5833333 | D143: 9787 | E143: 9800 | F143: 13
A144: 7100 | B144: 9926 | C144: 827.1666667 | D144: 9926 | E144: 9900 | F144: -26
A145: 7200 | B145: 10066 | C145: 838.8333333 | D145: 10066 | E145: 10100 | F145: 34
A146: 7300 | B146: 10206 | C146: 850.5 | D146: 10206 | E146: 10200 | F146: -6
A147: 7335.23 | B147: 10255 | C147: 854.5833333 | D147: 10255 | E147: 10300 | F147: 45
A148: 7400 | B148: 10346 | C148: 862.1666667 | D148: 10346 | E148: 10300 | F148: -46
A149: 7500 | B149: 10486 | C149: 873.8333333 | D149: 10486 | E149: 10500 | F149: 14
A150: 7600 | B150: 10625 | C150: 885.4166667 | D150: 10625 | E150: 10600 | F150: -25
A151: 7700 | B151: 10765 | C151: 897.0833333 | D151: 10765 | E151: 10800 | F151: 35
A152: 7800 | B152: 10905 | C152: 908.75 | D152: 10905 | E152: 10900 | F152: -5
A153: 7900 | B153: 11045 | C153: 920.4166667 | D153: 11045 | E153: 11000 | F153: -45
A154: 8000 | B154: 11185 | C154: 932.0833333 | D154: 11185 | E154: 11200 | F154: 15
A155: 8100 | B155: 11324 | C155: 943.6666667 | D155: 11324 | E155: 11300 | F155: -24
A156: 8200 | B156: 11464 | C156: 955.3333333 | D156: 11464 | E156: 11500 | F156: 36
A157: 8300 | B157: 11604 | C157: 967 | D157: 11604 | E157: 11600 | F157: -4
A158: 8400 | B158: 11744 | C158: 978.6666667 | D158: 11744 | E158: 11700 | F158: -44
A159: 8500 | B159: 11884 | C159: 990.3333333 | D159: 11884 | E159: 11900 | F159: 16
A160: 8600 | B160: 12023 | C160: 1001.916667 | D160: 12023 | E160: 12000 | F160: -23
A161: 8700 | B161: 12163 | C161: 1013.583333 | D161: 12163 | E161: 12200 | F161: 37
A162: 8800 | B162: 12303 | C162: 1025.25 | D162: 12303 | E162: 12300 | F162: -3
A163: 8900 | B163: 12443 | C163: 1036.916667 | D163: 12443 | E163: 12400 | F163: -43
A164: 9000 | B164: 12583 | C164: 1048.583333 | D164: 12583 | E164: 12600 | F164: 17
A165: 9100 | B165: 12723 | C165: 1060.25 | D165: 12723 | E165: 12700 | F165: -23
A166: 9200 | B166: 12862 | C166: 1071.833333 | D166: 12862 | E166: 12900 | F166: 38
A167: 9300 | B167: 13002 | C167: 1083.5 | D167: 13002 | E167: 13000 | F167: -2
A168: 9400 | B168: 13142 | C168: 1095.166667 | D168: 13142 | E168: 13100 | F168: -42
A169: 9450 | B169: 13212 | C169: 1101 | D169: 13212 | E169: 13200 | F169: -12
A170: 9500 | B170: 13282 | C170: 1106.833333 | D170: 13282 | E170: 13300 | F170: 18
A171: 9600 | B171: 13422 | C171: 1118.5 | D171: 13422 | E171: 13400 | F171: -22
A172: 9700 | B172: 13561 | C172: 1130.083333 | D172: 13561 | E172: 13600 | F172: 39
A173: 9800 | B173: 13701 | C173: 1141.75 | D173: 13701 | E173: 13700 | F173: -1
A174: 9900 | B174: 13841 | C174: 1153.416667 | D174: 13841 | E174: 13800 | F174: -41
A175: 10000 | B175: 13981 | C175: 1165.083333 | D175: 13981 | E175: 14000 | F175: 19
A176: 10600 | B176: 14820 | C176: 1235 | D176: 14820 | E176: 14800 | F176: -20
A177: 10800 | B177: 15099 | C177: 1258.25 | D177: 15099 | E177: 15100 | F177: 1
A178: 11000 | B178: 15379 | C178: 1281.583333 | D178: 15379 | E178: 15400 | F178: 21
A179: 11200 | B179: 15658 | C179: 1304.833333 | D179: 15658 | E179: 15700 | F179: 42
A180: 11300 | B180: 15798 | C180: 1316.5 | D180: 15798 | E180: 15800 | F180: 2
A181: 11500 | B181: 16078 | C181: 1339.833333 | D181: 16078 | E181: 16100 | F181: 22
A182: 11600 | B182: 16218 | C182: =VALUE(B182)/12 -> 1351.5 | D182: 16218 | E182: 16200 | F182: -18
A183: 11700 | B183: 16358 | C183: 1363.166667 | D183: 16358 | E183: 16400 | F183: 42
A184: 11800 | B184: 16497 | C184: 1374.75 | D184: 16497 | E184: =IF(D184<1000,D184,ROUND(D184,-2)) -> 16500 | F184: 3
A185: 11900 | B185: 16637 | C185: 1386.416667 | D185: 16637 | E185: 16600 | F185: -37
A186: 12000 | B186: 16777 | C186: 1398.083333 | D186: 16777 | E186: 16800 | F186: 23
A187: 12100 | B187: 16917 | C187: 1409.75 | D187: =B187 -> 16917 | E187: 16900 | F187: =E187-D187 -> -17
A188: 12200 | B188: 17057 | C188: 1421.416667 | D188: 17057 | E188: 17100 | F188: 43
A189: 12300 | B189: 17196 | C189: 1433 | D189: 17196 | E189: 17200 | F189: 4
A190: 12400 | B190: 17336 | C190: 1444.666667 | D190: 17336 | E190: 17300 | F190: -36
A191: 12500 | B191: 17476 | C191: 1456.333333 | D191: 17476 | E191: 17500 | F191: 24
A192: 12600 | B192: 17616 | C192: 1468 | D192: 17616 | E192: 17600 | F192: -16
A193: 12700 | B193: =IF(A193<1000,$B$1*A193,ROUND($B$1*A193,0)) -> 17756 | C193: 1479.666667 | D193: 17756 | E193: 17800 | F193: 44
A194: 12800 | B194: 17895 | C194: 1491.25 | D194: 17895 | E194: 17900 | F194: 5
A195: 12900 | B195: 18035 | C195: 1502.916667 | D195: 18035 | E195: 18000 | F195: -35
A196: 13000 | B196: 18175 | C196: 1514.583333 | D196: 18175 | E196: 18200 | F196: 25
A197: 13200 | B197: 18455 | C197: 1537.916667 | D197: 18455 | E197: 18500 | F197: 45
A198: 13400 | B198: 18734 | C198: 1561.166667 | D198: 18734 | E198: 18700 | F198: -34
A199: 13500 | B199: 18874 | C199: 1572.833333 | D199: 18874 | E199: 18900 | F199: 26
A200: 13700 | B200: 19154 | C200: 1596.166667 | D200: 19154 | E200: 19200 | F200: 46
... 195 more rows

Sheet reguleringsprocenter (hidden)
B2: Reguleringsprocenter | D2: pensionsudbygning
B3: Valgt: | C3: =VLOOKUP(Forside!K11,reguleringsprocenter!B4:D15,2,TRUE) -> 1.083866
B4: 2019-04-01 | C4: 1.020238 | D4: 1
B5: 2019-10-01 | C5: 1.028075 | D5: 1
B6: 2020-01-01 | C6: 1.045075 | D6: 1
B7: 2020-04-01 | C7: 1.049075 | D7: 1
B8: 2020-10-01 | C8: 1.053224 | D8: 1
B9: 2021-04-01 | C9: 1.061123 | D9: 1
B10: 2021-10-01 | C10: 1.064474 | D10: 1
B11: 2022-04-01 | C11: 1.064474 | D11: 1
B12: 2022-10-01 | C12: 1.083866 | D12: 1
B13: 2023-01-01 | C13: 1.091976 | D13: 1
B18: Liste, opslag niveauer
B19: 2023-01-01
B20: 2022-10-01
B21: 2022-04-01
B22: 2021-10-01
B23: 2021-04-01
B24: 2020-10-01
B25: 2020-04-01
B26: 2020-01-01
B27: 2019-10-01
B28: 2019-04-01

Sheet Lønark (hidden)
A1: Næstved | X1: Løn | Y1: Årsløn | AB1: Ureguleret ikke-pensionsgivende tillæg | AF1: Årsløn ialt
X2: trin | Y2: Grundsats | Z2: %-reg. | AA2: Sats | AB2: Omr 1 | AC2: Omr 2 | AD2: Omr 3 | AE2: Omr 4 | AL2: Områdetillæg inkl. regulering | AQ2: Årsløn i alt | AW2: Pensionsgivende årsløn i alt | BB2: Pensionsgivende løn | BK2: Pensionsgivende løn | BQ2: Løn | BR2: timelønninger | BX2: Løn | BY2: timelønninger + 50% | CE2: Løn | CF2: søndagstillæg - 50% | DB2: 1.344105
B3: Månedsløn, løngrupper | E3: Lønniveau: | F3: =VLOOKUP(beregningsdato,regpct_tabel,1,TRUE) -> 2022-10-01 | H3: Optrapning fra: | M3: Pensionsgivende løn | S3: Pensionsgivende løn, optrapning fra: | AL3: 1 | AM3: 2 | AN3: 3 | AO3: 4 | AQ3: Omr 0 | AR3: Omr 1 | AS3: Omr 2 | AT3: Omr 3 | AU3: Omr 4 | AW3: Omr 0 | AX3: Omr 1 | AY3: Omr 2 | AZ3: Omr 3 | BA3: Omr 4 | BB3: Grundsats | BC3: %-reg. | BD3: Sats | BF3: Pensionsudbygningspct: | BI3: =VLOOKUP(F3,regpct_tabel,3,FALSE) -> 1 | BK3: Omr 0 | BL3: Omr 1 | BM3: Omr 2 | BN3: Omr 3 | BO3: Omr 4 | BQ3: trin | BR3: Omr 0 | BS3: Omr 1 | BT3: Omr 2 | BU3: Omr 3 | BV3: Omr 4 | BX3: trin | BY3: Omr 0 | BZ3: Omr 1 | CA3: Omr 2 | CB3: Omr 3 | CC3: Omr 4 | CE3: trin | CF3: Omr 0 | CG3: Omr 1 | CH3: Omr 2 | CI3: Omr 3 | CJ3: Omr 4 | CY3: niveau | CZ3: kolonne | DB3: 2017-10-01 | DF3: 2018-10-01
B4: 0 | C4: 1 | D4: 2 | E4: 3 | F4: 4 | H4: 0->1 | I4: 1->2 | J4: 2->3 | M4: 0 | N4: 1 | O4: 2 | P4: 3 | Q4: 4 | S4: 0->1 | T4: 1->2 | U4: 2->3 | V4: 3->4 | Y4: =VLOOKUP(beregningsdato,Lønprojekt_DR,2,TRUE) -> 1339 | Z4: =valgt_regulering-1 -> 0.083866 | AA4: 2019-04-01 | AB4: 2022-04-01 | AC4: =VLOOKUP(beregningsdato,Lønprojekt_DR,3,TRUE) -> 620 | AD4: 4 | AE4: 5 | AL4: =IF(beregningsdato<40087,0,regulering) -> 0.083866 | AM4: =IF(beregningsdato<40087,0,5) -> 5 | CM4: 2017-10-01 | CN4: 2018-10-01 | CO4: 2019-04-01 | CQ4: omr1 | CR4: omr2 | CS4: omr3 | CT4: omr4 | CU4: omr5 | CY4: 2017-10-01 | CZ4: 2 | DB4: omr1 | DC4: omr2 | DD4: omr3 | DE4: omr4 | DF4: omr1 | DG4: omr2 | DH4: omr3 | DI4: omr4 | DN4: 2015-01-01 | DO4: 0 | DP4: 0
A5: 1 | B5: =AQ5/12 -> 17869.66667 | C5: 18121.66667 | D5: 18296.16667 | E5: 18548.33333 | F5: 18722.75 | H5: =ROUND(AQ5+(AR5-AQ5)/3*faktor,0)/12 -> 469117.6667 | I5: =ROUND(AR5+(AS5-AR5)/3*faktor,0)/12 -> 330593 | J5: =ROUND(AS5+(AT5-AS5)/3*faktor,0)/12 -> 469842.5833 | L5: 1 | M5: =B5 -> 17869.66667 | N5: =C5 -> 18121.66667 | O5: =D5 -> 18296.16667 | P5: =E5 -> 18548.33333 | Q5: =F5 -> 18722.75 | S5: =(BK5+ROUND((BL5-BK5)/3*faktor,0))/12 -> 451248 | T5: =(BL5+ROUND((BM5-BL5)/3*faktor,0))/12 -> 312723.3333 | U5: =(BM5+ROUND((BN5-BM5)/3*faktor,0))/12 -> 451972.9167 | V5: =(BN5+ROUND((BO5-BN5)/3*faktor,0))/12 -> 313000.75 | X5: 1 | Y5: 197844 | Z5: =ROUND(Y5*regulering,0) -> 16592 | AA5: =Y5+Z5 -> 214436 | AB5: 2790 | AC5: 4722 | AD5: 7514 | AE5: 9445 | AG5: 2076 | AH5: 3513 | AI5: 5590 | AJ5: 7027 | AL5: =ROUND(AB5*(1+$AL$4),0) -> 3024 | AM5: =ROUND(AC5*(1+$AL$4),0) -> 5118 | AN5: 8144 | AO5: 10237 | AP5: 1 | AQ5: =$AA5 -> 214436 | AR5: =$AA5+AL5 -> 217460 | AS5: =$AA5+AM5 -> 219554 | AT5: 222580 | AU5: 224673 | AV5: 1 | AW5: =AQ5 -> 214436 | AX5: =AR5 -> 217460 | AY5: =AS5 -> 219554 | AZ5: =AT5 -> 222580 | BA5: =AU5 -> 224673 | BF5: =ROUND(AL5*udbygningspct,0) -> 3024 | BG5: =ROUND(AM5*udbygningspct,0) -> 5118 | BH5: =ROUND(AN5*udbygningspct,0) -> 8144 | BI5: =ROUND(AO5*udbygningspct,0) -> 10237 | BK5: =BD5 -> 0 | BL5: =$BK5+BF5 -> 3024 | BM5: =$BK5+BG5 -> 5118 | BN5: =$BK5+BH5 -> 8144 | BO5: =$BK5+BI5 -> 10237 | BQ5: 1 | BR5: =AQ5/1924 -> 111.4532225 | BS5: =AR5/1924 -> 113.024948 | BT5: =AS5/1924 -> 114.1133056 | BU5: =AT5/1924 -> 115.6860707 | BV5: =AU5/1924 -> 116.7739085 | BX5: 1 | BY5: =AQ5/1924*1.5 -> 167.1798337 | BZ5: =AR5/1924*1.5 -> 169.537422 | CA5: =AS5/1924*1.5 -> 171.1699584 | CB5: =AT5/1924*1.5 -> 173.529106 | CC5: =AU5/1924*1.5 -> 175.1608628 | CE5: 1 | CF5: =AQ5/1924/2 -> 55.72661123 | CG5: =AR5/1924/2 -> 56.51247401 | CH5: =AS5/1924/2 -> 57.05665281 | CI5: =AT5/1924/2 -> 57.84303534 | CJ5: =AU5/1924/2 -> 58.38695426 | CL5: 1 | CM5: 147194 | CN5: 197844 | CO5: 197844 | CP5: 4004 | CQ5: 201848 | CR5: 2585 | CS5: 4374 | CT5: 6959 | CU5: 8748 | CY5: 2018-10-01 | CZ5: 3 | DA5: 1 | DB5: 2076 | DC5: 3513 | DD5: 5590 | DE5: 7027 | DF5: =ROUND(DB5*$DB$2,0) -> 2790 | DG5: =ROUND(DC5*$DB$2,0) -> 4722 | DH5: =ROUND(DD5*$DB$2,0) -> 7514 | DI5: =ROUND(DE5*$DB$2,0) -> 9445 | DK5: 147194 | DL5: =ROUND(DK5*$DB$2,0) -> 197844 | DN5: 2019-04-01 | DO5: 719 | DP5: 0
A6: 2 | B6: 18144.16667 | C6: 18402.41667 | D6: 18581.08333 | E6: 18839.25 | F6: 19018 | H6: 480583.8333 | I6: 338334.8333 | J6: 480871.5 | L6: 2 | M6: =B6 -> 18144.16667 | N6: 18402.41667 | O6: 18581.08333 | P6: 18839.25 | Q6: 19018 | S6: 462439.6667 | T6: 320190.6667 | U6: 462727.3333 | V6: 320776.75 | X6: 2 | Y6: 200883 | Z6: =ROUND(Y6*regulering,0) -> 16847 | AA6: 217730 | AB6: 2859 | AC6: 4837 | AD6: 7696 | AE6: 9675 | AG6: 2127 | AH6: 3599 | AI6: 5726 | AJ6: 7198 | AL6: =ROUND(AB6*(1+$AL$4),0) -> 3099 | AM6: =ROUND(AC6*(1+$AL$4),0) -> 5243 | AN6: =ROUND(AD6*(1+$AL$4),0) -> 8341 | AO6: =ROUND(AE6*(1+$AL$4),0) -> 10486 | AP6: 2 | AQ6: =$AA6 -> 217730 | AR6: =$AA6+AL6 -> 220829 | AS6: 222973 | AT6: 226071 | AU6: 228216 | AV6: 2 | AW6: =AQ6 -> 217730 | AX6: 220829 | AY6: 222973 | AZ6: 226071 | BA6: 228216 | BF6: 3099 | BG6: 5243 | BH6: 8341 | BI6: 10486 | BK6: 0 | BL6: 3099 | BM6: 5243 | BN6: 8341 | BO6: 10486 | BQ6: 2 | BR6: 113.1652807 | BS6: 114.7759875 | BT6: 115.8903326 | BU6: 117.5005198 | BV6: 118.6153846 | BX6: 2 | BY6: 169.747921 | BZ6: 172.1639813 | CA6: 173.835499 | CB6: 176.2507796 | CC6: 177.9230769 | CE6: 2 | CF6: 56.58264033 | CG6: 57.38799376 | CH6: 57.94516632 | CI6: 58.75025988 | CJ6: 59.30769231 | CL6: 2 | CM6: 149455 | CN6: 200883 | CO6: 200883 | CP6: 4065 | CQ6: 204948 | CR6: 2648 | CS6: 4481 | CT6: 7128 | CU6: 8961 | CY6: 2019-04-01 | CZ6: 4 | DA6: 2 | DB6: 2127 | DC6: 3599 | DD6: 5726 | DE6: 7198 | DF6: =ROUND(DB6*$DB$2,0) -> 2859 | DG6: 4837 | DH6: 7696 | DI6: 9675 | DK6: 149455 | DL6: =ROUND(DK6*$DB$2,0) -> 200883 | DN6: 2022-04-01 | DO6: =DO5+DP6 -> 1339 | DP6: 620
A7: 3 | B7: 18426.08333 | C7: 18690.41667 | D7: 18873.75 | E7: 19138.08333 | F7: 19321.25 | H7: 491759 | I7: 346979.3333 | J7: 492206.6667 | L7: 3 | M7: 18426.08333 | N7: 18690.41667 | O7: 18873.75 | P7: 19138.08333 | Q7: 19321.25 | S7: 473332.9167 | T7: 328553.25 | U7: 473780.5833 | V7: 328702.4167 | X7: 3 | Y7: 204004 | Z7: 17109 | AA7: 221113 | AB7: 2927 | AC7: 4956 | AD7: 7883 | AE7: 9911 | AG7: 2178 | AH7: 3687 | AI7: 5865 | AJ7: 7374 | AL7: 3172 | AM7: 5372 | AN7: 8544 | AO7: 10742 | AP7: 3 | AQ7: 221113 | AR7: 224285 | AS7: 226485 | AT7: 229657 | AU7: 231855 | AV7: 3 | AW7: 221113 | AX7: 224285 | AY7: 226485 | AZ7: 229657 | BA7: 231855 | BF7: 3172 | BG7: 5372 | BH7: 8544 | BI7: 10742 | BK7: 0 | BL7: 3172 | BM7: 5372 | BN7: 8544 | BO7: 10742 | BQ7: 3 | BR7: 114.9235967 | BS7: 116.5722453 | BT7: 117.7156965 | BU7: 119.3643451 | BV7: 120.5067568 | BX7: 3 | BY7: 172.385395 | BZ7: 174.858368 | CA7: 176.5735447 | CB7: 179.0465177 | CC7: 180.7601351 | CE7: 3 | CF7: 57.46179834 | CG7: 58.28612266 | CH7: 58.85784823 | CI7: 59.68217256 | CJ7: 60.25337838 | CL7: 3 | CM7: 151777 | CN7: 204004 | CO7: 204004 | CP7: 4129 | CQ7: 208133 | CR7: 2711 | CS7: 4590 | CT7: 7301 | CU7: 9180 | DA7: 3 | DB7: 2178 | DC7: 3687 | DD7: 5865 | DE7: 7374 | DF7: 2927 | DG7: 4956 | DH7: 7883 | DI7: 9911 | DK7: 151777 | DL7: 204004
A8: 4 | B8: 18715.75 | C8: 18986.75 | D8: 19174.41667 | E8: 19445.33333 | F8: 19633 | H8: 503986.4167 | I8: 355035.1667 | J8: 504295.8333 | L8: 4 | M8: 18715.75 | N8: 18986.75 | O8: 19174.41667 | P8: 19445.33333 | Q8: 19633 | S8: 485270.6667 | T8: 336319.4167 | U8: 485580.0833 | V8: 336778 | X8: 4 | Y8: 207211 | Z8: 17378 | AA8: 224589 | AB8: 3000 | AC8: 5078 | AD8: 8078 | AE8: 10155 | AG8: 2232 | AH8: 3778 | AI8: 6010 | AJ8: 7555 | AL8: 3252 | AM8: 5504 | AN8: 8755 | AO8: 11007 | AP8: 4 | AQ8: 224589 | AR8: 227841 | AS8: 230093 | AT8: 233344 | AU8: 235596 | AV8: 4 | AW8: 224589 | AX8: 227841 | AY8: 230093 | AZ8: 233344 | BA8: 235596 | BF8: 3252 | BG8: 5504 | BH8: 8755 | BI8: 11007 | BK8: 0 | BL8: 3252 | BM8: 5504 | BN8: 8755 | BO8: 11007 | BQ8: 4 | BR8: 116.7302495 | BS8: 118.4204782 | BT8: 119.5909563 | BU8: 121.2806653 | BV8: 122.4511435 | BX8: 4 | BY8: 175.0953742 | BZ8: 177.6307173 | CA8: 179.3864345 | CB8: 181.9209979 | CC8: 183.6767152 | CE8: 4 | CF8: 58.36512474 | CG8: 59.21023909 | CH8: 59.79547817 | CI8: 60.64033264 | CJ8: 61.22557173 | CL8: 4 | CM8: 154163 | CN8: 207211 | CO8: 207211 | CP8: 4194 | CQ8: 211405 | CR8: 2779 | CS8: 4703 | CT8: 7482 | CU8: 9405 | DA8: 4 | DB8: 2232 | DC8: 3778 | DD8: 6010 | DE8: 7555 | DF8: 3000 | DG8: 5078 | DH8: 8078 | DI8: 10155 | DK8: 154163 | DL8: 207211
A9: 5 | B9: 19013.33333 | C9: 19291 | D9: 19483.25 | E9: 19760.91667 | F9: 19952.91667 | H9: 516221.75 | I9: 363546.6667 | J9: 516691.6667 | L9: 5 | M9: 19013.33333 | N9: 19291 | O9: 19483.25 | P9: 19760.91667 | Q9: 19952.91667 | S9: 497208.4167 | T9: 344533.3333 | U9: 497678.3333 | V9: 344555.5833 | X9: 5 | Y9: 210506 | Z9: 17654 | AA9: 228160 | AB9: 3074 | AC9: 5203 | AD9: 8277 | AE9: 10403 | AG9: 2287 | AH9: 3871 | AI9: 6158 | AJ9: 7740 | AL9: 3332 | AM9: 5639 | AN9: 8971 | AO9: 11275 | AP9: 5 | AQ9: 228160 | AR9: 231492 | AS9: 233799 | AT9: 237131 | AU9: 239435 | AV9: 5 | AW9: 228160 | AX9: 231492 | AY9: 233799 | AZ9: 237131 | BA9: 239435 | BF9: 3332 | BG9: 5639 | BH9: 8971 | BI9: 11275 | BK9: 0 | BL9: 3332 | BM9: 5639 | BN9: 8971 | BO9: 11275 | BQ9: 5 | BR9: 118.5862786 | BS9: 120.3180873 | BT9: 121.5171518 | BU9: 123.2489605 | BV9: 124.4464657 | BX9: 5 | BY9: 177.8794179 | BZ9: 180.477131 | CA9: 182.2757277 | CB9: 184.8734407 | CC9: 186.6696985 | CE9: 5 | CF9: 59.29313929 | CG9: 60.15904366 | CH9: 60.75857588 | CI9: 61.62448025 | CJ9: 62.22323285 | CL9: 5 | CM9: 156614 | CN9: 210506 | CO9: 210506 | CP9: 4260 | CQ9: 214766 | CR9: 2847 | CS9: 4819 | CT9: 7666 | CU9: 9636 | DA9: 5 | DB9: 2287 | DC9: 3871 | DD9: 6158 | DE9: 7740 | DF9: 3074 | DG9: 5203 | DH9: 8277 | DI9: 10403 | DK9: 156614 | DL9: 210506
A10: 6 | B10: 19319.33333 | C10: 19603.75 | D10: 19800.83333 | E10: 20085.25 | F10: 20282.16667 | H10: 528614.75 | I10: 372514.3333 | J10: 529096.25 | L10: 6 | M10: 19319.33333 | N10: 19603.75 | O10: 19800.83333 | P10: 20085.25 | Q10: 20282.16667 | S10: 509295.4167 | T10: 353195 | U10: 509776.9167 | V10: 353378 | X10: 6 | Y10: 213894 | Z10: 17938 | AA10: 231832 | AB10: 3149 | AC10: 5331 | AD10: 8480 | AE10: 10660 | AG10: 2343 | AH10: 3966 | AI10: 6309 | AJ10: 7931 | AL10: 3413 | AM10: 5778 | AN10: 9191 | AO10: 11554 | AP10: 6 | AQ10: 231832 | AR10: 235245 | AS10: 237610 | AT10: 241023 | AU10: 243386 | AV10: 6 | AW10: 231832 | AX10: 235245 | AY10: 237610 | AZ10: 241023 | BA10: 243386 | BF10: 3413 | BG10: 5778 | BH10: 9191 | BI10: 11554 | BK10: 0 | BL10: 3413 | BM10: 5778 | BN10: 9191 | BO10: 11554 | BQ10: 6 | BR10: 120.4948025 | BS10: 122.268711 | BT10: 123.497921 | BU10: 125.2718295 | BV10: 126.5 | BX10: 6 | BY10: 180.7422037 | BZ10: 183.4030665 | CA10: 185.2468815 | CB10: 187.9077443 | CC10: 189.75 | CE10: 6 | CF10: 60.24740125 | CG10: 61.13435551 | CH10: 61.7489605 | CI10: 62.63591476 | CJ10: 63.25 | CL10: 6 | CM10: 159135 | CN10: 213894 | CO10: 213894 | CP10: 4329 | CQ10: 218223 | CR10: 2917 | CS10: 4937 | CT10: 7854 | CU10: 9873 | DA10: 6 | DB10: 2343 | DC10: 3966 | DD10: 6309 | DE10: 7931 | DF10: 3149 | DG10: 5331 | DH10: 8480 | DI10: 10660 | DK10: 159135 | DL10: 213894
A11: 7 | B11: 19633.33333 | C11: 19924.83333 | D11: 20126.83333 | E11: 20418.25 | F11: 20620 | H11: 541612.6667 | I11: 381639.5 | J11: 541956.9167 | L11: 7 | M11: 19633.33333 | N11: 19924.83333 | O11: 20126.83333 | P11: 20418.25 | Q11: 20620 | S11: 521979.3333 | T11: 362006.1667 | U11: 522323.5833 | V11: 362051.9167 | X11: 7 | Y11: 217370 | Z11: 18230 | AA11: 235600 | AB11: 3227 | AC11: 5464 | AD11: 8690 | AE11: 10924 | AG11: 2401 | AH11: 4065 | AI11: 6465 | AJ11: 8127 | AL11: 3498 | AM11: 5922 | AN11: 9419 | AO11: 11840 | AP11: 7 | AQ11: 235600 | AR11: =$AA11+AL11 -> 239098 | AS11: 241522 | AT11: 245019 | AU11: 247440 | AV11: 7 | AW11: 235600 | AX11: 239098 | AY11: 241522 | AZ11: 245019 | BA11: 247440 | BF11: 3498 | BG11: 5922 | BH11: 9419 | BI11: 11840 | BK11: 0 | BL11: 3498 | BM11: 5922 | BN11: 9419 | BO11: 11840 | BQ11: 7 | BR11: 122.4532225 | BS11: 124.2713098 | BT11: 125.531185 | BU11: 127.3487526 | BV11: 128.6070686 | BX11: 7 | BY11: 183.6798337 | BZ11: 186.4069647 | CA11: 188.2967775 | CB11: 191.0231289 | CC11: 192.9106029 | CE11: 7 | CF11: 61.22661123 | CG11: 62.13565489 | CH11: 62.76559252 | CI11: 63.6743763 | CJ11: 64.3035343 | CL11: 7 | CM11: 161721 | CN11: 217370 | CO11: 217370 | CP11: 4399 | CQ11: 221769 | CR11: 2989 | CS11: 5060 | CT11: 8049 | CU11: 10118 | DA11: 7 | DB11: 2401 | DC11: 4065 | DD11: 6465 | DE11: 8127 | DF11: 3227 | DG11: 5464 | DH11: 8690 | DI11: 10924 | DK11: 161721 | DL11: 217370
A12: 8 | B12: 19967.91667 | C12: 20267.08333 | D12: 20474.08333 | E12: 20773.08333 | F12: 20980.08333 | H12: 555675.6667 | I12: 390935.0833 | J12: 555883.4167 | L12: 8 | M12: 19967.91667 | N12: 20267.08333 | O12: 20474.08333 | P12: 20773.08333 | Q12: 20980.08333 | S12: 535707.75 | T12: 370967.1667 | U12: 535915.5 | V12: 371473.1667 | X12: 8 | Y12: 221074 | Z12: 18541 | AA12: 239615 | AB12: 3312 | AC12: 5604 | AD12: 8914 | AE12: 11206 | AG12: 2464 | AH12: 4169 | AI12: 6632 | AJ12: 8337 | AL12: 3590 | AM12: 6074 | AN12: 9662 | AO12: 12146 | AP12: 8 | AQ12: 239615 | AR12: 243205 | AS12: 245689 | AT12: 249277 | AU12: 251761 | AV12: 8 | AW12: 239615 | AX12: 243205 | AY12: 245689 | AZ12: 249277 | BA12: 251761 | BF12: 3590 | BG12: 6074 | BH12: 9662 | BI12: 12146 | BK12: 0 | BL12: 3590 | BM12: 6074 | BN12: 9662 | BO12: 12146 | BQ12: 8 | BR12: 124.5400208 | BS12: 126.4059252 | BT12: 127.6969854 | BU12: 129.5618503 | BV12: 130.8529106 | BX12: 8 | BY12: 186.8100312 | BZ12: 189.6088877 | CA12: 191.5454782 | CB12: 194.3427755 | CC12: 196.2793659 | CE12: 8 | CF12: 62.2700104 | CG12: 63.20296258 | CH12: 63.84849272 | CI12: 64.78092516 | CJ12: 65.4264553 | CL12: 8 | CM12: 164477 | CN12: 221074 | CO12: 221074 | CP12: 4474 | CQ12: 225548 | CR12: 3067 | CS12: 5190 | CT12: 8256 | CU12: 10379 | DA12: 8 | DB12: 2464 | DC12: 4169 | DD12: 6632 | DE12: 8337 | DF12: 3312 | DG12: 5604 | DH12: 8914 | DI12: 11206 | DK12: 164477 | DL12: 221074
A13: 9 | B13: 20596.08333 | C13: 20902.66667 | D13: 21114.83333 | E13: 21421.16667 | F13: 21633.33333 | H13: =ROUND(AQ13+(AR13-AQ13)/3*faktor,0)/12 -> 569584.6667 | I13: =ROUND(AR13+(AS13-AR13)/3*faktor,0)/12 -> 400822.4167 | J13: =ROUND(AS13+(AT13-AS13)/3*faktor,0)/12 -> 569655.75 | L13: 9 | M13: 20596.08333 | N13: 20902.66667 | O13: 21114.83333 | P13: 21421.16667 | Q13: 21633.33333 | S13: =(BK13+ROUND((BL13-BK13)/3*faktor,0))/12 -> 548988.5833 | T13: =(BL13+ROUND((BM13-BL13)/3*faktor,0))/12 -> 380226.3333 | U13: =(BM13+ROUND((BN13-BM13)/3*faktor,0))/12 -> 549059.6667 | V13: =(BN13+ROUND((BO13-BN13)/3*faktor,0))/12 -> 380744.8333 | X13: 9 | Y13: 228029 | Z13: 19124 | AA13: 247153 | AB13: 3394 | AC13: 5743 | AD13: 9135 | AE13: 11484 | AG13: 2525 | AH13: 4273 | AI13: 6796 | AJ13: 8544 | AL13: 3679 | AM13: 6225 | AN13: 9901 | AO13: 12447 | AP13: 9 | AQ13: 247153 | AR13: 250832 | AS13: 253378 | AT13: 257054 | AU13: 259600 | AV13: 9 | AW13: 247153 | AX13: 250832 | AY13: 253378 | AZ13: 257054 | BA13: 259600 | BF13: 3679 | BG13: 6225 | BH13: 9901 | BI13: 12447 | BK13: 0 | BL13: 3679 | BM13: 6225 | BN13: 9901 | BO13: 12447 | BQ13: 9 | BR13: 128.4579002 | BS13: 130.3700624 | BT13: 131.6933472 | BU13: 133.6039501 | BV13: 134.9272349 | BX13: 9 | BY13: 192.6868503 | BZ13: 195.5550936 | CA13: 197.5400208 | CB13: 200.4059252 | CC13: 202.3908524 | CE13: 9 | CF13: 64.2289501 | CG13: 65.18503119 | CH13: 65.8466736 | CI13: 66.80197505 | CJ13: 67.46361746 | CL13: 9 | CM13: 169651 | CN13: 228029 | CO13: 228029 | CP13: 4615 | CQ13: 232644 | CR13: 3143 | CS13: 5319 | CT13: 8461 | CU13: 10637 | DA13: 9 | DB13: 2525 | DC13: 4273 | DD13: 6796 | DE13: 8544 | DF13: 3394 | DG13: 5743 | DH13: 9135 | DI13: 11484 | DK13: 169651 | DL13: 228029
A14: 10 | B14: 20741.5 | C14: 21055.58333 | D14: 21273.16667 | E14: 21587.16667 | F14: 21804.75 | H14: 583160.0833 | I14: 410674.8333 | J14: 583542.5 | L14: 10 | M14: 20741.5 | N14: 21055.58333 | O14: 21273.16667 | P14: 21587.16667 | Q14: 21804.75 | S14: 562418.5833 | T14: 389933.3333 | U14: 562801 | V14: 390464.9167 | X14: 10 | Y14: 229639 | Z14: 19259 | AA14: 248898 | AB14: 3477 | AC14: 5886 | AD14: 9363 | AE14: 11772 | AG14: 2587 | AH14: 4379 | AI14: 6966 | AJ14: 8758 | AL14: 3769 | AM14: 6380 | AN14: 10148 | AO14: 12759 | AP14: 10 | AQ14: 248898 | AR14: 252667 | AS14: 255278 | AT14: 259046 | AU14: 261657 | AV14: 10 | AW14: 248898 | AX14: 252667 | AY14: 255278 | AZ14: 259046 | BA14: 261657 | BF14: 3769 | BG14: 6380 | BH14: 10148 | BI14: 12759 | BK14: 0 | BL14: 3769 | BM14: 6380 | BN14: 10148 | BO14: 12759 | BQ14: 10 | BR14: 129.3648649 | BS14: 131.3238046 | BT14: 132.6808732 | BU14: 134.6392931 | BV14: 135.9963617 | BX14: 10 | BY14: 194.0472973 | BZ14: 196.9857069 | CA14: 199.0213098 | CB14: 201.9589397 | CC14: 203.9945426 | CE14: 10 | CF14: 64.68243243 | CG14: 65.66190229 | CH14: 66.34043659 | CI14: 67.31964657 | CJ14: 67.99818087 | CL14: 10 | CM14: 170849 | CN14: 229639 | CO14: 229639 | CP14: 4647 | CQ14: 234286 | CR14: 3221 | CS14: 5451 | CT14: 8672 | CU14: 10903 | DA14: 10 | DB14: 2587 | DC14: 4379 | DD14: 6966 | DE14: 8758 | DF14: 3477 | DG14: 5886 | DH14: 9363 | DI14: 11772 | DK14: 170849 | DL14: 229639
A15: 11 | B15: 21131.66667 | C15: 21453.66667 | D15: 21676.66667 | E15: 21998.5 | F15: 22221.5 | H15: 597726.3333 | I15: 420772.3333 | J15: 597972.9167 | L15: 11 | M15: 21131.66667 | N15: 21453.66667 | O15: 21676.66667 | P15: 21998.5 | Q15: 22221.5 | S15: 576594.6667 | T15: 399640.6667 | U15: 576841.25 | V15: 400185.5 | X15: 11 | Y15: 232620 | Z15: =ROUND(IF(beregningsdato>=$AA$4,SUM(Y15,$Y$4)*regulering,Y15*regulering),0) -> 19621 | AA15: =IF(beregningsdato>=$AA$4,SUM($Y$4,Y15:Z15),SUM(Y15:Z15)) -> 253580 | AB15: 3565 | AC15: 6034 | AD15: 9597 | AE15: 12066 | AG15: 2652 | AH15: 4489 | AI15: 7140 | AJ15: 8977 | AL15: 3864 | AM15: 6540 | AN15: 10402 | AO15: 13078 | AP15: 11 | AQ15: =$AA15 -> 253580 | AR15: 257444 | AS15: 260120 | AT15: 263982 | AU15: 266658 | AV15: 11 | AW15: 253580 | AX15: 257444 | AY15: 260120 | AZ15: 263982 | BA15: 266658 | BF15: 3864 | BG15: 6540 | BH15: 10402 | BI15: 13078 | BK15: 0 | BL15: 3864 | BM15: 6540 | BN15: 10402 | BO15: 13078 | BQ15: 11 | BR15: 131.7983368 | BS15: 133.8066528 | BT15: 135.1975052 | BU15: 137.2047817 | BV15: 138.5956341 | BX15: 11 | BY15: 197.6975052 | BZ15: 200.7099792 | CA15: 202.7962578 | CB15: 205.8071726 | CC15: 207.8934511 | CE15: 11 | CF15: 65.8991684 | CG15: 66.9033264 | CH15: 67.5987526 | CI15: 68.60239085 | CJ15: 69.29781705 | CL15: 11 | CM15: 173067 | CN15: 232620 | CO15: 233339 | CP15: 4722 | CQ15: 237342 | CR15: 3301 | CS15: 5588 | CT15: 8889 | CU15: 11175 | DA15: 11 | DB15: 2652 | DC15: 4489 | DD15: 7140 | DE15: 8977 | DF15: 3565 | DG15: 6034 | DH15: 9597 | DI15: 12066 | DK15: 173067 | DL15: 232620
A16: 12 | B16: 21491.58333 | C16: 21821.5 | D16: 22050.08333 | E16: 22380.16667 | F16: 22608.58333 | H16: 612262.3333 | I16: 431138.0833 | J16: 613119.3333 | L16: 12 | M16: 21491.58333 | N16: 21821.5 | O16: 22050.08333 | P16: 22380.16667 | Q16: 22608.58333 | S16: 590770.75 | T16: 409646.5 | U16: 591627.75 | V16: 409906.6667 | X16: 12 | Y16: 236605 | Z16: 19955 | AA16: 257899 | AB16: 3653 | AC16: 6183 | AD16: 9838 | AE16: 12367 | AG16: 2718 | AH16: 4600 | AI16: 7319 | AJ16: 9201 | AL16: 3959 | AM16: 6702 | AN16: 10663 | AO16: 13404 | AP16: 12 | AQ16: 257899 | AR16: 261858 | AS16: 264601 | AT16: 268562 | AU16: 271303 | AV16: 12 | AW16: 257899 | AX16: 261858 | AY16: 264601 | AZ16: 268562 | BA16: 271303 | BF16: 3959 | BG16: 6702 | BH16: 10663 | BI16: 13404 | BK16: 0 | BL16: 3959 | BM16: 6702 | BN16: 10663 | BO16: 13404 | BQ16: 12 | BR16: 134.0431393 | BS16: 136.1008316 | BT16: 137.5265073 | BU16: 139.5852391 | BV16: 141.0098753 | BX16: 12 | BY16: 201.0647089 | BZ16: 204.1512474 | CA16: 206.2897609 | CB16: 209.3778586 | CC16: 211.5148129 | CE16: 12 | CF16: 67.02156965 | CG16: 68.0504158 | CH16: 68.76325364 | CI16: 69.79261954 | CJ16: 70.50493763 | CL16: 12 | CM16: 176032 | CN16: 236605 | CO16: 237324 | CP16: 4803 | CQ16: 241408 | CR16: 3384 | CS16: 5727 | CT16: 9112 | CU16: 11455 | DA16: 12 | DB16: 2718 | DC16: 4600 | DD16: 7319 | DE16: 9201 | DF16: 3653 | DG16: 6183 | DH16: 9838 | DI16: 12367 | DK16: 176032 | DL16: 236605
A17: 13 | B17: 21861.83333 | C17: 22200.16667 | D17: 22434.5 | E17: 22772.83333 | F17: 23007.08333 | H17: 627704.0833 | I17: 441813.0833 | J17: 628276.75 | L17: 13 | M17: 21861.83333 | N17: 22200.16667 | O17: 22434.5 | P17: 22772.83333 | Q17: 23007.08333 | S17: 605842.25 | T17: 419951.25 | U17: 606414.9167 | V17: 420374.6667 | X17: 13 | Y17: 240704 | Z17: 20299 | AA17: 262342 | AB17: 3746 | AC17: 6340 | AD17: 10086 | AE17: 12680 | AG17: 2787 | AH17: 4717 | AI17: 7504 | AJ17: 9434 | AL17: 4060 | AM17: 6872 | AN17: 10932 | AO17: 13743 | AP17: 13 | AQ17: 262342 | AR17: 266402 | AS17: 269214 | AT17: 273274 | AU17: 276085 | AV17: 13 | AW17: 262342 | AX17: 266402 | AY17: 269214 | AZ17: 273274 | BA17: 276085 | BF17: 4060 | BG17: 6872 | BH17: 10932 | BI17: 13743 | BK17: 0 | BL17: 4060 | BM17: 6872 | BN17: 10932 | BO17: 13743 | BQ17: 13 | BR17: 136.3523909 | BS17: 138.462578 | BT17: 139.9241164 | BU17: 142.0343035 | BV17: 143.4953222 | BX17: 13 | BY17: 204.5285863 | BZ17: 207.6938669 | CA17: 209.8861746 | CB17: 213.0514553 | CC17: 215.2429834 | CE17: 13 | CF17: 68.17619543 | CG17: 69.23128898 | CH17: 69.96205821 | CI17: 71.01715177 | CJ17: 71.74766112 | CL17: 13 | CM17: 179081 | CN17: 240704 | CO17: 241423 | CP17: 4886 | CQ17: 245590 | CR17: 3470 | CS17: 5872 | CT17: 9342 | CU17: 11744 | DA17: 13 | DB17: 2787 | DC17: 4717 | DD17: 7504 | DE17: 9434 | DF17: 3746 | DG17: 6340 | DH17: 10086 | DI17: 12680 | DK17: 179081 | DL17: 240704
A18: 14 | B18: 22242.16667 | C18: 22589 | D18: 22829.16667 | E18: 23176.08333 | F18: 23416.25 | H18: 643305.0833 | I18: 452647.4167 | J18: 644041.25 | L18: 14 | M18: 22242.16667 | N18: 22589 | O18: 22829.16667 | P18: 23176.08333 | Q18: 23416.25 | S18: 621062.9167 | T18: 430405.25 | U18: 621799.0833 | V18: 430992.3333 | X18: 14 | Y18: 244915 | Z18: 20652 | AA18: 266906 | AB18: 3840 | AC18: 6499 | AD18: 10340 | AE18: 12999 | AG18: 2857 | AH18: 4835 | AI18: 7693 | AJ18: 9671 | AL18: 4162 | AM18: 7044 | AN18: 11207 | AO18: 14089 | AP18: 14 | AQ18: 266906 | AR18: 271068 | AS18: 273950 | AT18: 278113 | AU18: 280995 | AV18: 14 | AW18: 266906 | AX18: 271068 | AY18: 273950 | AZ18: 278113 | BA18: 280995 | BF18: 4162 | BG18: 7044 | BH18: 11207 | BI18: 14089 | BK18: 0 | BL18: 4162 | BM18: 7044 | BN18: 11207 | BO18: 14089 | BQ18: 14 | BR18: 138.7245322 | BS18: 140.8877339 | BT18: 142.3856549 | BU18: 144.5493763 | BV18: 146.0472973 | BX18: 14 | BY18: 208.0867983 | BZ18: 211.3316008 | CA18: 213.5784823 | CB18: 216.8240644 | CC18: 219.0709459 | CE18: 14 | CF18: 69.36226611 | CG18: 70.44386694 | CH18: 71.19282744 | CI18: 72.27468815 | CJ18: 73.02364865 | CL18: 14 | CM18: 182214 | CN18: 244915 | CO18: 245634 | CP18: 4971 | CQ18: 249886 | CR18: 3557 | CS18: 6019 | CT18: 9577 | CU18: 12039 | DA18: 14 | DB18: 2857 | DC18: 4835 | DD18: 7693 | DE18: 9671 | DF18: 3840 | DG18: 6499 | DH18: 10340 | DI18: 12999 | DK18: 182214 | DL18: 244915
A19: 15 | B19: 22617.75 | C19: 22973.33333 | D19: 23219.66667 | E19: 23575.16667 | F19: 23821.5 | H19: 659349 | I19: 464074.25 | J19: 659801.6667 | L19: 15 | M19: 22617.75 | N19: 22973.33333 | O19: 23219.66667 | P19: 23575.16667 | Q19: 23821.5 | S19: 636731.25 | T19: 441456.5 | U19: 637183.9167 | V19: 442058.3333 | X19: 15 | Y19: 249073 | Z19: 21001 | AA19: 271413 | AB19: 3937 | AC19: 6664 | AD19: 10600 | AE19: 13327 | AG19: 2929 | AH19: 4958 | AI19: 7886 | AJ19: 9915 | AL19: 4267 | AM19: 7223 | AN19: 11489 | AO19: 14445 | AP19: 15 | AQ19: 271413 | AR19: 275680 | AS19: 278636 | AT19: 282902 | AU19: 285858 | AV19: 15 | AW19: 271413 | AX19: 275680 | AY19: 278636 | AZ19: 282902 | BA19: 285858 | BF19: 4267 | BG19: 7223 | BH19: 11489 | BI19: 14445 | BK19: 0 | BL19: 4267 | BM19: 7223 | BN19: 11489 | BO19: 14445 | BQ19: 15 | BR19: 141.0670478 | BS19: 143.2848233 | BT19: 144.8212058 | BU19: 147.0384615 | BV19: 148.5748441 | BX19: 15 | BY19: 211.6005717 | BZ19: 214.9272349 | CA19: 217.2318087 | CB19: 220.5576923 | CC19: 222.8622661 | CE19: 15 | CF19: 70.53352391 | CG19: 71.64241164 | CH19: 72.41060291 | CI19: 73.51923077 | CJ19: 74.28742204 | CL19: 15 | CM19: 185308 | CN19: 249073 | CO19: 249792 | CP19: 5055 | CQ19: 254128 | CR19: 3646 | CS19: 6172 | CT19: 9818 | CU19: 12343 | DA19: 15 | DB19: 2929 | DC19: 4958 | DD19: 7886 | DE19: 9915 | DF19: 3937 | DG19: 6664 | DH19: 10600 | DI19: 13327 | DK19: 185308 | DL19: 249073
A20: 16 | B20: 23002.25 | C20: 23366.75 | D20: 23619.25 | E20: 23983.75 | F20: 24236.33333 | H20: 675700.25 | I20: 475510.0833 | J20: 676317.25 | L20: 16 | M20: 23002.25 | N20: 23366.75 | O20: 23619.25 | P20: 23983.75 | Q20: 24236.33333 | S20: 652698 | T20: 452507.8333 | U20: 653315 | V20: 453274.0833 | X20: 16 | Y20: 253330 | Z20: 21358 | AA20: 276027 | AB20: 4036 | AC20: 6831 | AD20: 10867 | AE20: 13663 | AG20: 3003 | AH20: 5082 | AI20: 8085 | AJ20: 10165 | AL20: 4374 | AM20: 7404 | AN20: 11778 | AO20: 14809 | AP20: 16 | AQ20: 276027 | AR20: 280401 | AS20: 283431 | AT20: 287805 | AU20: 290836 | AV20: 16 | AW20: 276027 | AX20: 280401 | AY20: 283431 | AZ20: 287805 | BA20: 290836 | BF20: 4374 | BG20: 7404 | BH20: 11778 | BI20: 14809 | BK20: 0 | BL20: 4374 | BM20: 7404 | BN20: 11778 | BO20: 14809 | BQ20: 16 | BR20: 143.4651767 | BS20: 145.7385655 | BT20: 147.3134096 | BU20: 149.5867983 | BV20: 151.1621622 | BX20: 16 | BY20: 215.1977651 | BZ20: 218.6078482 | CA20: 220.9701143 | CB20: 224.3801975 | CC20: 226.7432432 | CE20: 16 | CF20: 71.73258836 | CG20: 72.86928274 | CH20: 73.65670478 | CI20: 74.79339917 | CJ20: 75.58108108 | CL20: 16 | CM20: 188475 | CN20: 253330 | CO20: 254049 | CP20: 5141 | CQ20: 258471 | CR20: 3738 | CS20: 6327 | CT20: 10065 | CU20: 12655 | DA20: 16 | DB20: 3003 | DC20: 5082 | DD20: 8085 | DE20: 10165 | DF20: 4036 | DG20: 6831 | DH20: 10867 | DI20: 13663 | DK20: 188475 | DL20: 253330
A21: 17 | B21: =AQ21/12 -> 23321.75 | C21: 23697.25 | D21: 23957.41667 | E21: 24333 | F21: 24592.91667 | H21: 695717.0833 | I21: 489569 | J21: 696502 | L21: 17 | M21: 23321.75 | N21: 23697.25 | O21: 23957.41667 | P21: 24333 | Q21: 24592.91667 | S21: 672395.3333 | T21: 466247.25 | U21: 673180.25 | V21: 466435.3333 | X21: 17 | Y21: 256867 | Z21: 21655 | AA21: 279861 | AB21: 4157 | AC21: 7038 | AD21: 11196 | AE21: 14074 | AG21: 3093 | AH21: 5236 | AI21: 8330 | AJ21: 10471 | AL21: 4506 | AM21: 7628 | AN21: 12135 | AO21: 15254 | AP21: 17 | AQ21: 279861 | AR21: 284367 | AS21: 287489 | AT21: 291996 | AU21: 295115 | AV21: 17 | AW21: 279861 | AX21: 284367 | AY21: 287489 | AZ21: 291996 | BA21: 295115 | BF21: 4506 | BG21: 7628 | BH21: 12135 | BI21: 15254 | BK21: 0 | BL21: 4506 | BM21: 7628 | BN21: 12135 | BO21: 15254 | BQ21: 17 | BR21: 145.4579002 | BS21: 147.799896 | BT21: 149.4225572 | BU21: 151.7650728 | BV21: 153.3861746 | BX21: 17 | BY21: 218.1868503 | BZ21: 221.6998441 | CA21: 224.1338358 | CB21: 227.6476091 | CC21: 230.079262 | CE21: 17 | CF21: 72.7289501 | CG21: 73.89994802 | CH21: 74.71127859 | CI21: 75.88253638 | CJ21: 76.69308732 | CL21: 17 | CM21: 191106 | CN21: 256867 | CO21: 257586 | CP21: 5213 | CQ21: 262080 | CR21: 3851 | CS21: 6518 | CT21: 10370 | CU21: 13035 | DA21: 17 | DB21: 3093 | DC21: 5236 | DD21: 8330 | DE21: 10471 | DF21: 4157 | DG21: 7038 | DH21: 11196 | DI21: 14074 | DK21: 191106 | DL21: 256867
A22: 18 | B22: 23747.66667 | C22: 24132.83333 | D22: 24399.33333 | E22: 24784.58333 | F22: 25051.16667 | H22: 713452.75 | I22: 501345.5 | J22: 714253.6667 | L22: 18 | M22: 23747.66667 | N22: 24132.83333 | O22: 24399.33333 | P22: 24784.58333 | Q22: 25051.16667 | S22: 689705.0833 | T22: 477597.8333 | U22: 690506 | V22: 478398.8333 | X22: 18 | Y22: 261583 | Z22: 22050 | AA22: 284972 | AB22: 4264 | AC22: 7215 | AD22: 11480 | AE22: 14432 | AG22: 3172 | AH22: 5368 | AI22: 8541 | AJ22: 10737 | AL22: 4622 | AM22: 7820 | AN22: 12443 | AO22: 15642 | AP22: 18 | AQ22: 284972 | AR22: 289594 | AS22: 292792 | AT22: 297415 | AU22: 300614 | AV22: 18 | AW22: 284972 | AX22: 289594 | AY22: 292792 | AZ22: 297415 | BA22: 300614 | BF22: 4622 | BG22: 7820 | BH22: 12443 | BI22: 15642 | BK22: 0 | BL22: 4622 | BM22: 7820 | BN22: 12443 | BO22: 15642 | BQ22: 18 | BR22: 148.1143451 | BS22: 150.516632 | BT22: 152.1787942 | BU22: 154.5816008 | BV22: 156.2442827 | BX22: 18 | BY22: 222.1715177 | BZ22: 225.774948 | CA22: 228.2681913 | CB22: 231.8724012 | CC22: 234.3664241 | CE22: 18 | CF22: 74.05717256 | CG22: 75.25831601 | CH22: 76.08939709 | CI22: 77.29080042 | CJ22: 78.12214137 | CL22: 18 | CM22: 194615 | CN22: 261583 | CO22: 262302 | CP22: 5308 | CQ22: 266891 | CR22: 3949 | CS22: 6683 | CT22: 10633 | CU22: 13367 | DA22: 18 | DB22: 3172 | DC22: 5368 | DD22: 8541 | DE22: 10737 | DF22: 4264 | DG22: 7215 | DH22: 11480 | DI22: 14432 | DK22: 194615 | DL22: 261583
A23: 19 | B23: 24066.58333 | C23: 24461.5 | D23: 24735.08333 | E23: 25129.91667 | F23: 25403.33333 | H23: 731230.6667 | I23: 514358.0833 | J23: 731750 | L23: 19 | M23: 24066.58333 | N23: 24461.5 | O23: 24735.08333 | P23: 25129.91667 | Q23: 25403.33333 | S23: 707164.0833 | T23: 490291.5 | U23: 707683.4167 | V23: 490661.4167 | X23: 19 | Y23: 265114 | Z23: 22346 | AA23: 288799 | AB23: 4372 | AC23: 7401 | AD23: 11773 | AE23: 14800 | AG23: 3253 | AH23: 5506 | AI23: 8759 | AJ23: 11011 | AL23: 4739 | AM23: 8022 | AN23: 12760 | AO23: 16041 | AP23: 19 | AQ23: 288799 | AR23: 293538 | AS23: 296821 | AT23: 301559 | AU23: =$AA23+AO23 -> 304840 | AV23: 19 | AW23: 288799 | AX23: 293538 | AY23: 296821 | AZ23: 301559 | BA23: 304840 | BF23: 4739 | BG23: 8022 | BH23: 12760 | BI23: 16041 | BK23: 0 | BL23: 4739 | BM23: 8022 | BN23: 12760 | BO23: 16041 | BQ23: 19 | BR23: 150.1034304 | BS23: 152.5665281 | BT23: 154.272869 | BU23: 156.735447 | BV23: 158.4407484 | BX23: 19 | BY23: 225.1551455 | BZ23: 228.8497921 | CA23: 231.4093035 | CB23: 235.1031705 | CC23: 237.6611227 | CE23: 19 | CF23: 75.05171518 | CG23: 76.28326403 | CH23: 77.13643451 | CI23: 78.36772349 | CJ23: 79.22037422 | CL23: 19 | CM23: 197242 | CN23: 265114 | CO23: 265833 | CP23: 5380 | CQ23: 270494 | CR23: 4050 | CS23: 6854 | CT23: 10904 | CU23: 13708 | DA23: 19 | DB23: 3253 | DC23: 5506 | DD23: 8759 | DE23: 11011 | DF23: 4372 | DG23: 7401 | DH23: 11773 | DI23: 14800 | DK23: 197242 | DL23: 265114
A24: 20 | B24: 24332.66667 | C24: 24737.66667 | D24: 25017.91667 | E24: 25423.16667 | F24: 25703.41667 | H24: 749552.6667 | I24: 526572 | J24: 750685.5833 | L24: 20 | M24: 24332.66667 | N24: 24737.66667 | O24: 25017.91667 | P24: 25423.16667 | Q24: 25703.41667 | S24: 725220 | T24: 502239.3333 | U24: 726352.9167 | V24: 502924.8333 | X24: 20 | Y24: 268779 | Z24: =ROUND(IF(beregningsdato>=$AB$4,SUM(Y24,$AC$4)*regulering,Y24*regulering),0) -> 22593 | AA24: =IF(beregningsdato>=$AB$4,SUM($AC$4,Y24:Z24),SUM(Y24:Z24)) -> 291992 | AB24: 4484 | AC24: 7587 | AD24: 12073 | AE24: 15176 | AG24: 3336 | AH24: 5645 | AI24: 8982 | AJ24: 11291 | AL24: 4860 | AM24: 8223 | AN24: 13086 | AO24: 16449 | AP24: 20 | AQ24: 291992 | AR24: 296852 | AS24: 300215 | AT24: 305078 | AU24: 308441 | AV24: 20 | AW24: 291992 | AX24: 296852 | AY24: 300215 | AZ24: 305078 | BA24: 308441 | BF24: 4860 | BG24: 8223 | BH24: 13086 | BI24: 16449 | BK24: 0 | BL24: 4860 | BM24: 8223 | BN24: 13086 | BO24: 16449 | BQ24: 20 | BR24: 151.7629938 | BS24: 154.2889813 | BT24: 156.0369023 | BU24: 158.5644491 | BV24: 160.3123701 | BX24: 20 | BY24: 227.6444906 | BZ24: 231.4334719 | CA24: 234.0553534 | CB24: 237.8466736 | CC24: 240.4685551 | CE24: 20 | CF24: 75.88149688 | CG24: 77.14449064 | CH24: 78.01845114 | CI24: 79.28222453 | CJ24: 80.15618503 | CL24: 20 | CM24: 199969 | CN24: 268779 | CO24: 268779 | CP24: 5440 | CQ24: 274219 | CR24: 4153 | CS24: 7028 | CT24: 11182 | CU24: 14056 | DA24: 20 | DB24: 3336 | DC24: 5645 | DD24: 8982 | DE24: 11291 | DF24: 4484 | DG24: 7587 | DH24: 12073 | DI24: 15176 | DK24: 199969 | DL24: 268779
A25: 21 | B25: 24735.41667 | C25: 25150.75 | D25: 25438.33333 | E25: 25853.66667 | F25: 26141.25 | H25: 768459 | I25: 540116.6667 | J25: 769161.9167 | L25: 21 | M25: 24735.41667 | N25: 25150.75 | O25: 25438.33333 | P25: 25853.66667 | Q25: 26141.25 | S25: 743723.5833 | T25: 515381.25 | U25: 744426.5 | V25: 516084.1667 | X25: 21 | Y25: 273238 | Z25: =ROUND(IF(beregningsdato>=$AB$4,SUM(Y25,$AC$4)*regulering,Y25*regulering),0) -> 22967 | AA25: =IF(beregningsdato>=$AB$4,SUM($AC$4,Y25:Z25),SUM(Y25:Z25)) -> 296825 | AB25: 4598 | AC25: 7782 | AD25: 12381 | AE25: 15565 | AG25: 3421 | AH25: 5790 | AI25: 9211 | AJ25: 11580 | AL25: 4984 | AM25: 8435 | AN25: 13419 | AO25: 16870 | AP25: 21 | AQ25: 296825 | AR25: 301809 | AS25: 305260 | AT25: 310244 | AU25: 313695 | AV25: 21 | AW25: 296825 | AX25: 301809 | AY25: 305260 | AZ25: 310244 | BA25: 313695 | BF25: 4984 | BG25: 8435 | BH25: 13419 | BI25: 16870 | BK25: 0 | BL25: 4984 | BM25: 8435 | BN25: 13419 | BO25: 16870 | BQ25: 21 | BR25: 154.274948 | BS25: 156.8653846 | BT25: 158.6590437 | BU25: 161.2494802 | BV25: 163.0431393 | BX25: 21 | BY25: 231.412422 | BZ25: 235.2980769 | CA25: 237.9885655 | CB25: 241.8742204 | CC25: 244.5647089 | CE25: 21 | CF25: 77.13747401 | CG25: 78.43269231 | CH25: 79.32952183 | CI25: 80.62474012 | CJ25: 81.52156965 | CL25: 21 | CM25: 203286 | CN25: 273238 | CO25: 273238 | CP25: 5530 | CQ25: 278768 | CR25: 4259 | CS25: 7208 | CT25: 11467 | CU25: 14416 | DA25: 21 | DB25: 3421 | DC25: 5790 | DD25: 9211 | DE25: 11580 | DF25: 4598 | DG25: 7782 | DH25: 12381 | DI25: 15565 | DK25: 203286 | DL25: 273238
A26: 22 | B26: 25108.83333 | C26: 25524.16667 | D26: 25811.75 | E26: 26227.08333 | F26: 26514.66667 | H26: 768832.4167 | I26: 540490.0833 | J26: 769535.3333 | L26: 22 | M26: 25108.83333 | N26: 25524.16667 | O26: 25811.75 | P26: 26227.08333 | Q26: 26514.66667 | S26: 743723.5833 | T26: 515381.25 | U26: 744426.5 | V26: 516084.1667 | X26: 22 | Y26: 277372 | Z26: =ROUND(IF(beregningsdato>=$AB$4,SUM(Y26,$AC$4)*regulering,Y26*regulering),0) -> 23314 | AA26: =IF(beregningsdato>=$AB$4,SUM($AC$4,Y26:Z26),SUM(Y26:Z26)) -> 301306 | AB26: 4598 | AC26: 7782 | AD26: 12381 | AE26: 15565 | AG26: 3421 | AH26: 5790 | AI26: 9211 | AJ26: 11580 | AL26: 4984 | AM26: 8435 | AN26: 13419 | AO26: 16870 | AP26: 22 | AQ26: 301306 | AR26: 306290 | AS26: 309741 | AT26: 314725 | AU26: 318176 | AV26: 22 | AW26: 301306 | AX26: 306290 | AY26: 309741 | AZ26: 314725 | BA26: 318176 | BF26: 4984 | BG26: 8435 | BH26: 13419 | BI26: 16870 | BK26: 0 | BL26: 4984 | BM26: 8435 | BN26: 13419 | BO26: 16870 | BQ26: 22 | BR26: 156.6039501 | BS26: 159.1943867 | BT26: 160.9880457 | BU26: 163.5784823 | BV26: 165.3721414 | BX26: 22 | BY26: 234.9059252 | BZ26: 238.79158 | CA26: 241.4820686 | CB26: 245.3677235 | CC26: 248.0582121 | CE26: 22 | CF26: 78.30197505 | CG26: 79.59719335 | CH26: 80.49402287 | CI26: 81.78924116 | CJ26: 82.68607069 | CL26: 22 | CM26: 206362 | CN26: 277372 | CO26: 277372 | CP26: 5613 | CQ26: 282985 | CR26: 4259 | CS26: 7208 | CT26: 11467 | CU26: 14416 | DA26: 22 | DB26: 3421 | DC26: 5790 | DD26: 9211 | DE26: 11580 | DF26: 4598 | DG26: 7782 | DH26: 12381 | DI26: 15565 | DK26: 206362 | DL26: 277372
A27: 23 | B27: 25452.41667 | C27: 25856.58333 | D27: 26136.08333 | E27: 26540.08333 | F27: 26819.83333 | H27: 749180.1667 | I27: 526347.9167 | J27: 749565.4167 | L27: 23 | M27: 25452.41667 | N27: 25856.58333 | O27: 26136.08333 | P27: 26540.08333 | Q27: 26819.83333 | S27: 723727.75 | T27: 500895.5 | U27: 724113 | V27: 502026.6667 | X27: 23 | Y27: 281796 | Z27: =ROUND(Y27*regulering,0) -> 23633 | AA27: =Y27+Z27 -> 305429 | AB27: 4475 | AC27: 7569 | AD27: 12042 | AE27: 15139 | AG27: 3329 | AH27: 5631 | AI27: 8959 | AJ27: 11263 | AL27: 4850 | AM27: 8204 | AN27: 13052 | AO27: 16409 | AP27: 23 | AQ27: 305429 | AR27: 310279 | AS27: 313633 | AT27: 318481 | AU27: 321838 | AV27: 23 | AW27: 305429 | AX27: 310279 | AY27: 313633 | AZ27: 318481 | BA27: 321838 | BF27: 4850 | BG27: 8204 | BH27: 13052 | BI27: 16409 | BK27: 0 | BL27: 4850 | BM27: 8204 | BN27: 13052 | BO27: 16409 | BQ27: 23 | BR27: 158.7468815 | BS27: 161.2676715 | BT27: 163.0109148 | BU27: 165.5306653 | BV27: 167.2754678 | BX27: 23 | BY27: 238.1203222 | BZ27: 241.9015073 | CA27: 244.5163721 | CB27: 248.2959979 | CC27: 250.9132017 | CE27: 23 | CF27: 79.37344075 | CG27: 80.63383576 | CH27: 81.50545738 | CI27: 82.76533264 | CJ27: 83.63773389 | CL27: 23 | CM27: 209653 | CN27: 281796 | CO27: 281796 | CP27: 5703 | CQ27: 287499 | CR27: 4144 | CS27: 7010 | CT27: 11153 | CU27: 14021 | DA27: 23 | DB27: 3329 | DC27: 5631 | DD27: 8959 | DE27: 11263 | DF27: 4475 | DG27: 7569 | DH27: 12042 | DI27: 15139 | DK27: 209653 | DL27: 281796
A28: 24 | B28: 25864.66667 | C28: 26257.08333 | D28: 26529 | E28: 26921.41667 | F28: 27193.25 | H28: 728552.0833 | I28: 513169.1667 | J28: 729216.4167 | L28: 24 | M28: 25864.66667 | N28: 26257.08333 | O28: 26529 | P28: 26921.41667 | Q28: 27193.25 | S28: 702687.4167 | T28: 487304.5 | U28: 703351.75 | V28: 487819.6667 | X28: 24 | Y28: 286360 | Z28: 24016 | AA28: 310376 | AB28: 4345 | AC28: 7355 | AD28: 11700 | AE28: 14709 | AG28: 3233 | AH28: 5472 | AI28: 8705 | AJ28: 10943 | AL28: 4709 | AM28: 7972 | AN28: 12681 | AO28: 15943 | AP28: 24 | AQ28: 310376 | AR28: 315085 | AS28: 318348 | AT28: 323057 | AU28: 326319 | AV28: 24 | AW28: 310376 | AX28: 315085 | AY28: 318348 | AZ28: 323057 | BA28: 326319 | BF28: 4709 | BG28: 7972 | BH28: 12681 | BI28: 15943 | BK28: 0 | BL28: 4709 | BM28: 7972 | BN28: 12681 | BO28: 15943 | BQ28: 24 | BR28: 161.3180873 | BS28: 163.7655925 | BT28: 165.4615385 | BU28: 167.9090437 | BV28: 169.6044699 | BX28: 24 | BY28: 241.977131 | BZ28: 245.6483888 | CA28: 248.1923077 | CB28: 251.8635655 | CC28: 254.4067048 | CE28: 24 | CF28: 80.65904366 | CG28: 81.88279626 | CH28: 82.73076923 | CI28: 83.95452183 | CJ28: 84.80223493 | CL28: 24 | CM28: 213049 | CN28: 286360 | CO28: 286360 | CP28: 5795 | CQ28: 292155 | CR28: 4025 | CS28: 6812 | CT28: 10837 | CU28: 13623 | DA28: 24 | DB28: 3233 | DC28: 5472 | DD28: 8705 | DE28: 10943 | DF28: 4345 | DG28: 7355 | DH28: 11700 | DI28: 14709 | DK28: 213049 | DL28: 286360
A29: 25 | B29: 26285.58333 | C29: 26665.83333 | D29: 26929 | E29: 27309.5 | F29: =AU29/12 -> 27572.66667 | H29: 707186.5833 | I29: 497909.5833 | J29: 708277.6667 | L29: 25 | M29: 26285.58333 | N29: 26665.83333 | O29: 26929 | P29: 27309.5 | Q29: 27572.66667 | S29: 680901 | T29: 471624 | U29: 681992.0833 | V29: 472267.6667 | X29: 25 | Y29: 291020 | Z29: 24407 | AA29: 315427 | AB29: 4210 | AC29: 7124 | AD29: 11336 | AE29: 14250 | AG29: 3132 | AH29: 5300 | AI29: 8434 | AJ29: 10602 | AL29: 4563 | AM29: 7721 | AN29: 12287 | AO29: 15445 | AP29: 25 | AQ29: 315427 | AR29: 319990 | AS29: 323148 | AT29: 327714 | AU29: 330872 | AV29: 25 | AW29: 315427 | AX29: 319990 | AY29: 323148 | AZ29: 327714 | BA29: 330872 | BF29: 4563 | BG29: 7721 | BH29: 12287 | BI29: 15445 | BK29: 0 | BL29: 4563 | BM29: 7721 | BN29: 12287 | BO29: 15445 | BQ29: 25 | BR29: 163.9433472 | BS29: 166.3149688 | BT29: 167.956341 | BU29: 170.3295218 | BV29: 171.970894 | BX29: 25 | BY29: 245.9150208 | BZ29: 249.4724532 | CA29: 251.9345114 | CB29: 255.4942827 | CC29: 257.956341 | CE29: 25 | CF29: 81.9716736 | CG29: 83.15748441 | CH29: 83.97817048 | CI29: 85.16476091 | CJ29: 85.98544699 | CL29: 25 | CM29: 216516 | CN29: 291020 | CO29: 291020 | CP29: 5890 | CQ29: 296910 | CR29: 3899 | CS29: 6598 | CT29: 10499 | CU29: 13198 | DA29: 25 | DB29: 3132 | DC29: 5300 | DD29: 8434 | DE29: 10602 | DF29: 4210 | DG29: 7124 | DH29: 11336 | DI29: 14250 | DK29: 216516 | DL29: 291020
A30: 26 | B30: 26716.25 | C30: 27083.5 | D30: 27337.58333 | E30: 27704.83333 | F30: 27958.91667 | H30: 684338.5833 | I30: 482062.0833 | J30: 684959.9167 | L30: 26 | M30: 26716.25 | N30: 27083.5 | O30: 27337.58333 | P30: 27704.83333 | Q30: 27958.91667 | S30: 657622.3333 | T30: 455345.8333 | U30: 658243.6667 | V30: 455967.1667 | X30: 26 | Y30: 295788 | Z30: 24807 | AA30: 320595 | AB30: 4066 | AC30: 6879 | AD30: 10945 | AE30: 13758 | AG30: 3025 | AH30: 5118 | AI30: 8143 | AJ30: 10236 | AL30: 4407 | AM30: 7456 | AN30: 11863 | AO30: 14912 | AP30: 26 | AQ30: 320595 | AR30: 325002 | AS30: 328051 | AT30: 332458 | AU30: 335507 | AV30: 26 | AW30: 320595 | AX30: 325002 | AY30: 328051 | AZ30: 332458 | BA30: 335507 | BF30: 4407 | BG30: 7456 | BH30: 11863 | BI30: 14912 | BK30: 0 | BL30: 4407 | BM30: 7456 | BN30: 11863 | BO30: 14912 | BQ30: 26 | BR30: 166.6294179 | BS30: 168.9199584 | BT30: 170.5046778 | BU30: 172.7952183 | BV30: 174.3799376 | BX30: 26 | BY30: 249.9441268 | BZ30: 253.3799376 | CA30: 255.7570166 | CB30: 259.1928274 | CC30: 261.5699064 | CE30: 26 | CF30: 83.31470894 | CG30: 84.45997921 | CH30: 85.25233888 | CI30: 86.39760915 | CJ30: 87.18996881 | CL30: 26 | CM30: 220063 | CN30: 295788 | CO30: 295788 | CP30: 5986 | CQ30: 301774 | CR30: 3766 | CS30: 6372 | CT30: 10137 | CU30: 12743 | DA30: 26 | DB30: 3025 | DC30: 5118 | DD30: 8143 | DE30: 10236 | DF30: 4066 | DG30: 6879 | DH30: 10945 | DI30: 13758 | DK30: 220063 | DL30: 295788
A31: 27 | B31: 27156.58333 | C31: 27509.75 | D31: 27754.16667 | E31: 28107.16667 | F31: 28351.58333 | H31: 659560.3333 | I31: 465178.5 | J31: 659859.5 | L31: 27 | M31: 27156.58333 | N31: 27509.75 | O31: 27754.16667 | P31: 28107.16667 | Q31: 28351.58333 | S31: 632403.75 | T31: 438021.9167 | U31: 632702.9167 | V31: 438619.3333 | X31: 27 | Y31: 300664 | Z31: 25215 | AA31: 325879 | AB31: 3910 | AC31: 6616 | AD31: 10524 | AE31: 13230 | AG31: 2909 | AH31: 4922 | AI31: 7830 | AJ31: 9843 | AL31: 4238 | AM31: 7171 | AN31: 11407 | AO31: 14340 | AP31: 27 | AQ31: 325879 | AR31: 330117 | AS31: 333050 | AT31: 337286 | AU31: 340219 | AV31: 27 | AW31: 325879 | AX31: 330117 | AY31: 333050 | AZ31: 337286 | BA31: 340219 | BF31: 4238 | BG31: 7171 | BH31: 11407 | BI31: 14340 | BK31: 0 | BL31: 4238 | BM31: 7171 | BN31: 11407 | BO31: 14340 | BQ31: 27 | BR31: 169.3757796 | BS31: 171.5784823 | BT31: 173.1029106 | BU31: 175.3045738 | BV31: 176.8290021 | BX31: 27 | BY31: 254.0636694 | BZ31: 257.3677235 | CA31: 259.6543659 | CB31: 262.9568607 | CC31: 265.2435031 | CE31: 27 | CF31: 84.68788981 | CG31: 85.78924116 | CH31: 86.5514553 | CI31: 87.6522869 | CJ31: 88.41450104 | CL31: 27 | CM31: 223691 | CN31: 300664 | CO31: 300664 | CP31: 6085 | CQ31: 306749 | CR31: 3621 | CS31: 6127 | CT31: 9748 | CU31: 12254 | DA31: 27 | DB31: 2909 | DC31: 4922 | DD31: 7830 | DE31: 9843 | DF31: 3910 | DG31: 6616 | DH31: 10524 | DI31: 13230 | DK31: 223691 | DL31: 300664
A32: 28 | B32: 27606.75 | C32: 27944.83333 | D32: 28178.91667 | E32: 28517 | F32: 28750.91667 | H32: 633001.3333 | I32: 447110.0833 | J32: 633573.5 | L32: 28 | M32: 27606.75 | N32: 27944.83333 | O32: 28178.91667 | P32: 28517 | Q32: 28750.91667 | S32: 605394.5833 | T32: 419503.3333 | U32: 605966.75 | V32: 419777 | X32: 28 | Y32: 305648 | Z32: 25633 | AA32: 331281 | AB32: 3743 | AC32: 6335 | AD32: 10078 | AE32: 12668 | AG32: 2785 | AH32: 4713 | AI32: 7498 | AJ32: 9425 | AL32: 4057 | AM32: 6866 | AN32: 10923 | AO32: 13730 | AP32: 28 | AQ32: 331281 | AR32: 335338 | AS32: 338147 | AT32: 342204 | AU32: 345011 | AV32: 28 | AW32: 331281 | AX32: 335338 | AY32: 338147 | AZ32: 342204 | BA32: 345011 | BF32: 4057 | BG32: 6866 | BH32: 10923 | BI32: 13730 | BK32: 0 | BL32: 4057 | BM32: 6866 | BN32: 10923 | BO32: 13730 | BQ32: 28 | BR32: 172.1834719 | BS32: 174.2920998 | BT32: 175.752079 | BU32: 177.8607069 | BV32: 179.3196466 | BX32: 28 | BY32: 258.2752079 | BZ32: 261.4381497 | CA32: 263.6281185 | CB32: 266.7910603 | CC32: 268.9794699 | CE32: 28 | CF32: 86.09173597 | CG32: 87.1460499 | CH32: 87.8760395 | CI32: 88.93035343 | CJ32: 89.65982328 | CL32: 28 | CM32: 227399 | CN32: 305648 | CO32: 305648 | CP32: 6186 | CQ32: 311834 | CR32: 3467 | CS32: 5867 | CT32: 9334 | CU32: 11733 | DA32: 28 | DB32: 2785 | DC32: 4713 | DD32: 7498 | DE32: 9425 | DF32: 3743 | DG32: 6335 | DH32: 10078 | DI32: 12668 | DK32: 227399 | DL32: 305648
A33: 29 | B33: 28067.16667 | C33: 28389.25 | D33: 28612.16667 | E33: 28934.25 | F33: 29157.25 | H33: 604811.0833 | I33: 427558.6667 | J33: 605356.0833 | L33: 29 | M33: 28067.16667 | N33: 28389.25 | O33: 28612.16667 | P33: 28934.25 | Q33: 29157.25 | S33: 576743.9167 | T33: 399491.5 | U33: 577288.9167 | V33: 400185.75 | X33: 29 | Y33: 310745 | Z33: 26061 | AA33: 336806 | AB33: 3566 | AC33: 6034 | AD33: 9600 | AE33: 12069 | AG33: 2653 | AH33: 4489 | AI33: 7142 | AJ33: 8979 | AL33: 3865 | AM33: 6540 | AN33: 10405 | AO33: 13081 | AP33: 29 | AQ33: 336806 | AR33: 340671 | AS33: 343346 | AT33: 347211 | AU33: 349887 | AV33: 29 | AW33: 336806 | AX33: 340671 | AY33: 343346 | AZ33: 347211 | BA33: 349887 | BF33: 3865 | BG33: 6540 | BH33: 10405 | BI33: 13081 | BK33: 0 | BL33: 3865 | BM33: 6540 | BN33: 10405 | BO33: 13081 | BQ33: 29 | BR33: 175.0550936 | BS33: 177.0639293 | BT33: 178.454262 | BU33: 180.4630977 | BV33: 181.8539501 | BX33: 29 | BY33: 262.5826403 | BZ33: 265.595894 | CA33: 267.6813929 | CB33: 270.6946466 | CC33: 272.7809252 | CE33: 29 | CF33: 87.52754678 | CG33: 88.53196466 | CH33: 89.22713098 | CI33: 90.23154886 | CJ33: 90.92697505 | CL33: 29 | CM33: 231191 | CN33: 310745 | CO33: 310745 | CP33: 6289 | CQ33: 317034 | CR33: 3303 | CS33: 5589 | CT33: 8891 | CU33: 11178 | DA33: 29 | DB33: 2653 | DC33: 4489 | DD33: 7142 | DE33: 8979 | DF33: 3566 | DG33: 6034 | DH33: 9600 | DI33: 12069 | DK33: 231191 | DL33: 310745
A34: 30 | B34: 28537.5 | C34: 28842.41667 | D34: 29053.66667 | E34: 29358.75 | F34: 29569.83333 | H34: 574541.5833 | I34: 407120.75 | J34: 575356.25 | L34: 30 | M34: 28537.5 | N34: 28842.41667 | O34: 29053.66667 | P34: 29358.75 | Q34: 29569.83333 | S34: 546004.0833 | T34: 378583.25 | U34: 546818.75 | V34: 378801.1667 | X34: 30 | Y34: 315952 | Z34: 26498 | AA34: 342450 | AB34: 3376 | AC34: 5715 | AD34: 9092 | AE34: 11429 | AG34: 2512 | AH34: 4252 | AI34: 6764 | AJ34: 8503 | AL34: 3659 | AM34: 6194 | AN34: 9855 | AO34: 12388 | AP34: 30 | AQ34: 342450 | AR34: 346109 | AS34: 348644 | AT34: 352305 | AU34: 354838 | AV34: 30 | AW34: 342450 | AX34: 346109 | AY34: 348644 | AZ34: 352305 | BA34: 354838 | BF34: 3659 | BG34: 6194 | BH34: 9855 | BI34: 12388 | BK34: 0 | BL34: 3659 | BM34: 6194 | BN34: 9855 | BO34: 12388 | BQ34: 30 | BR34: 177.9885655 | BS34: 179.8903326 | BT34: 181.2079002 | BU34: 183.1107069 | BV34: 184.4272349 | BX34: 30 | BY34: 266.9828482 | BZ34: 269.835499 | CA34: 271.8118503 | CB34: 274.6660603 | CC34: 276.6408524 | CE34: 30 | CF34: 88.99428274 | CG34: 89.94516632 | CH34: 90.6039501 | CI34: 91.55535343 | CJ34: 92.21361746 | CL34: 30 | CM34: 235065 | CN34: 315952 | CO34: 315952 | CP34: 6394 | CQ34: 322346 | CR34: 3127 | CS34: 5293 | CT34: 8420 | CU34: 10585 | DA34: 30 | DB34: 2512 | DC34: 4252 | DD34: 6764 | DE34: 8503 | DF34: 3376 | DG34: 5715 | DH34: 9092 | DI34: 11429 | DK34: 235065 | DL34: 315952
A35: 31 | B35: 29018.41667 | C35: 29305.25 | D35: 29503.91667 | E35: 29790.75 | F35: 29989.25 | H35: 542641.3333 | I35: 385051 | J35: 543126.8333 | L35: 31 | M35: 29018.41667 | N35: 29305.25 | O35: 29503.91667 | P35: 29790.75 | Q35: 29989.25 | S35: 513622.9167 | T35: 356032.5833 | U35: 514108.4167 | V35: 356219.6667 | X35: 31 | Y35: 321277 | Z35: 26944 | AA35: 348221 | AB35: 3176 | AC35: 5375 | AD35: 8551 | AE35: 10749 | AG35: 2363 | AH35: 3999 | AI35: 6362 | AJ35: 7997 | AL35: 3442 | AM35: 5826 | AN35: 9268 | AO35: 11650 | AP35: 31 | AQ35: 348221 | AR35: 351663 | AS35: 354047 | AT35: 357489 | AU35: 359871 | AV35: 31 | AW35: 348221 | AX35: 351663 | AY35: 354047 | AZ35: 357489 | BA35: 359871 | BF35: 3442 | BG35: 5826 | BH35: 9268 | BI35: 11650 | BK35: 0 | BL35: 3442 | BM35: 5826 | BN35: 9268 | BO35: 11650 | BQ35: 31 | BR35: 180.9880457 | BS35: 182.777027 | BT35: 184.0161123 | BU35: 185.8050936 | BV35: 187.0431393 | BX35: 31 | BY35: 271.4820686 | BZ35: 274.1655405 | CA35: 276.0241684 | CB35: 278.7076403 | CC35: 280.5647089 | CE35: 31 | CF35: 90.49402287 | CG35: 91.38851351 | CH35: 92.00805613 | CI35: 92.90254678 | CJ35: 93.52156965 | CL35: 31 | CM35: 239027 | CN35: 321277 | CO35: 321277 | CP35: 6502 | CQ35: 327779 | CR35: 2942 | CS35: 4978 | CT35: 7920 | CU35: 9956 | DA35: 31 | DB35: 2363 | DC35: 3999 | DD35: 6362 | DE35: 7997 | DF35: 3176 | DG35: 5375 | DH35: 8551 | DI35: 10749 | DK35: 239027 | DL35: 321277
A36: 32 | B36: 29510.16667 | C36: 29777.58333 | D36: 29962.83333 | E36: 30230.58333 | F36: 30415.75 | H36: 508364.25 | I36: 361498.5833 | J36: 509413.8333 | L36: 32 | M36: 29510.16667 | N36: 29777.58333 | O36: 29962.83333 | P36: 30230.58333 | Q36: 30415.75 | S36: 478854.0833 | T36: 331988.4167 | U36: 479903.6667 | V36: 332292.1667 | X36: 32 | Y36: 326721 | Z36: 27401 | AA36: 354122 | AB36: 2961 | AC36: 5012 | AD36: 7976 | AE36: 10026 | AG36: 2203 | AH36: 3729 | AI36: 5934 | AJ36: 7459 | AL36: 3209 | AM36: 5432 | AN36: 8645 | AO36: 10867 | AP36: 32 | AQ36: 354122 | AR36: 357331 | AS36: 359554 | AT36: 362767 | AU36: 364989 | AV36: 32 | AW36: 354122 | AX36: 357331 | AY36: 359554 | AZ36: 362767 | BA36: 364989 | BF36: 3209 | BG36: 5432 | BH36: 8645 | BI36: 10867 | BK36: 0 | BL36: 3209 | BM36: 5432 | BN36: 8645 | BO36: 10867 | BQ36: 32 | BR36: 184.0550936 | BS36: 185.722973 | BT36: 186.8783784 | BU36: 188.5483368 | BV36: 189.7032225 | BX36: 32 | BY36: 276.0826403 | BZ36: 278.5844595 | CA36: 280.3175676 | CB36: 282.8225052 | CC36: 284.5548337 | CE36: 32 | CF36: 92.02754678 | CG36: 92.86148649 | CH36: 93.43918919 | CI36: 94.2741684 | CJ36: 94.85161123 | CL36: 32 | CM36: 243077 | CN36: 326721 | CO36: 326721 | CP36: 6612 | CQ36: 333333 | CR36: 2743 | CS36: 4642 | CT36: 7387 | CU36: 9286 | DA36: 32 | DB36: 2203 | DC36: 3729 | DD36: 5934 | DE36: 7459 | DF36: 2961 | DG36: 5012 | DH36: 7976 | DI36: 10026 | DK36: 243077 | DL36: 326721
A37: 33 | B37: 30012.5 | C37: 30259.5 | D37: 30430.58333 | E37: 30677.83333 | F37: 30848.66667 | H37: 472307.1667 | I37: 336612.75 | J37: 473172.9167 | L37: 33 | M37: 30012.5 | N37: 30259.5 | O37: 30430.58333 | P37: 30677.83333 | Q37: 30848.66667 | S37: 442294.6667 | T37: 306600.25 | U37: 443160.4167 | V37: 306570.9167 | X37: 33 | Y37: 332283 | Z37: 27867 | AA37: 360150 | AB37: 2735 | AC37: 4629 | AD37: 7366 | AE37: 9258 | AG37: 2035 | AH37: 3444 | AI37: 5480 | AJ37: 6888 | AL37: 2964 | AM37: 5017 | AN37: 7984 | AO37: 10034 | AP37: 33 | AQ37: 360150 | AR37: 363114 | AS37: 365167 | AT37: 368134 | AU37: 370184 | AV37: 33 | AW37: 360150 | AX37: 363114 | AY37: 365167 | AZ37: 368134 | BA37: 370184 | BF37: =ROUND(AL37*udbygningspct,0) -> 2964 | BG37: =ROUND(AM37*udbygningspct,0) -> 5017 | BH37: =ROUND(AN37*udbygningspct,0) -> 7984 | BI37: =ROUND(AO37*udbygningspct,0) -> 10034 | BK37: =BD37 -> 0 | BL37: =$BK37+BF37 -> 2964 | BM37: =$BK37+BG37 -> 5017 | BN37: =$BK37+BH37 -> 7984 | BO37: =$BK37+BI37 -> 10034 | BQ37: 33 | BR37: =AQ37/1924 -> 187.1881497 | BS37: =AR37/1924 -> 188.7286902 | BT37: =AS37/1924 -> 189.795738 | BU37: =AT37/1924 -> 191.3378378 | BV37: =AU37/1924 -> 192.4033264 | BX37: 33 | BY37: =AQ37/1924*1.5 -> 280.7822245 | BZ37: =AR37/1924*1.5 -> 283.0930353 | CA37: =AS37/1924*1.5 -> 284.6936071 | CB37: =AT37/1924*1.5 -> 287.0067568 | CC37: =AU37/1924*1.5 -> 288.6049896 | CE37: 33 | CF37: =AQ37/1924/2 -> 93.59407484 | CG37: =AR37/1924/2 -> 94.36434511 | CH37: =AS37/1924/2 -> 94.89786902 | CI37: =AT37/1924/2 -> 95.66891892 | CJ37: =AU37/1924/2 -> 96.2016632 | CL37: 33 | CM37: 247215 | CN37: 332283 | CO37: 332283 | CP37: 6725 | CQ37: 339008 | CR37: 2534 | CS37: 4288 | CT37: 6822 | CU37: 8575 | DA37: 33 | DB37: 2035 | DC37: 3444 | DD37: 5480 | DE37: 6888 | DF37: 2735 | DG37: 4629 | DH37: 7366 | DI37: 9258 | DK37: 247215 | DL37: 332283
A38: 34 | B38: 30526.58333 | C38: 30751.91667 | D38: 30908 | E38: 31133.33333 | F38: 31289.41667 | H38: 434023.5 | I38: 310245.1667 | J38: 434404.9167 | L38: 34 | M38: 30526.58333 | N38: 30751.91667 | O38: 30908 | P38: 31133.33333 | Q38: 31289.41667 | S38: 403496.9167 | T38: 279718.5833 | U38: 403878.3333 | V38: 280100 | X38: 34 | Y38: 337974 | Z38: 28345 | AA38: 366319 | AB38: 2495 | AC38: 4223 | AD38: 6718 | AE38: 8446 | AG38: 1856 | AH38: 3142 | AI38: 4998 | AJ38: 6284 | AL38: 2704 | AM38: 4577 | AN38: 7281 | AO38: 9154 | AP38: 34 | AQ38: 366319 | AR38: 369023 | AS38: 370896 | AT38: 373600 | AU38: 375473 | AV38: 34 | AW38: 366319 | AX38: 369023 | AY38: 370896 | AZ38: 373600 | BA38: 375473 | BF38: 2704 | BG38: 4577 | BH38: 7281 | BI38: 9154 | BK38: 0 | BL38: 2704 | BM38: 4577 | BN38: 7281 | BO38: 9154 | BQ38: 34 | BR38: 190.3944906 | BS38: 191.799896 | BT38: 192.7733888 | BU38: 194.1787942 | BV38: 195.1522869 | BX38: 34 | BY38: 285.591736 | BZ38: 287.6998441 | CA38: 289.1600832 | CB38: 291.2681913 | CC38: 292.7284304 | CE38: 34 | CF38: 95.19724532 | CG38: 95.89994802 | CH38: 96.38669439 | CI38: 97.08939709 | CJ38: 97.57614345 | CL38: 34 | CM38: 251449 | CN38: 337974 | CO38: 337974 | CP38: 6840 | CQ38: 344814 | CR38: 2311 | CS38: 3911 | CT38: 6222 | CU38: 7823 | DA38: 34 | DB38: 1856 | DC38: 3142 | DD38: 4998 | DE38: 6284 | DF38: 2495 | DG38: 4223 | DH38: 6718 | DI38: 8446 | DK38: 251449 | DL38: 337974
A39: 35 | B39: 31051.33333 | C39: 31253.83333 | D39: 31393.83333 | E39: 31596.08333 | F39: 31736.25 | H39: 393661.3333 | I39: 281947.1667 | J39: 393556.1667 | L39: 35 | M39: 31051.33333 | N39: 31253.83333 | O39: 31393.83333 | P39: 31596.08333 | Q39: 31736.25 | S39: 362610 | T39: 250895.8333 | U39: 362504.8333 | V39: 251536.5 | X39: 35 | Y39: 343784 | Z39: 28832 | AA39: 372616 | AB39: 2242 | AC39: 3792 | AD39: 6031 | AE39: 7583 | AG39: 1668 | AH39: 2821 | AI39: 4487 | AJ39: 5642 | AL39: 2430 | AM39: 4110 | AN39: 6537 | AO39: 8219 | AP39: 35 | AQ39: 372616 | AR39: 375046 | AS39: 376726 | AT39: 379153 | AU39: 380835 | AV39: 35 | AW39: 372616 | AX39: 375046 | AY39: 376726 | AZ39: 379153 | BA39: 380835 | BF39: 2430 | BG39: 4110 | BH39: 6537 | BI39: 8219 | BK39: 0 | BL39: 2430 | BM39: 4110 | BN39: 6537 | BO39: 8219 | BQ39: 35 | BR39: 193.6673597 | BS39: 194.9303534 | BT39: 195.8035343 | BU39: 197.0649688 | BV39: 197.9391892 | BX39: 35 | BY39: 290.5010395 | BZ39: 292.3955301 | CA39: 293.7053015 | CB39: 295.5974532 | CC39: 296.9087838 | CE39: 35 | CF39: 96.83367983 | CG39: 97.46517672 | CH39: 97.90176715 | CI39: 98.53248441 | CJ39: 98.96959459 | CL39: 35 | CM39: 255772 | CN39: 343784 | CO39: 343784 | CP39: 6958 | CQ39: 350742 | CR39: 2076 | CS39: 3512 | CT39: 5586 | CU39: 7024 | DA39: 35 | DB39: 1668 | DC39: 2821 | DD39: 4487 | DE39: 5642 | DF39: 2242 | DG39: 3792 | DH39: 6031 | DI39: 7583 | DK39: 255772 | DL39: 343784
A40: 36 | B40: 31588.16667 | C40: 31766.25 | D40: 31889.41667 | E40: 32067.33333 | F40: 32190.5 | H40: 350476.0833 | I40: 252316.6667 | J40: 350478.8333 | L40: 36 | M40: 31588.16667 | N40: 31766.25 | O40: 31889.41667 | P40: 32067.33333 | Q40: 32190.5 | S40: 318887.9167 | T40: 220728.5 | U40: 318890.6667 | V40: 221029.5833 | X40: 36 | Y40: 349728 | Z40: 29330 | AA40: 379058 | AB40: 1972 | AC40: 3335 | AD40: 5305 | AE40: 6669 | AG40: 1467 | AH40: 2481 | AI40: 3947 | AJ40: 4962 | AL40: 2137 | AM40: 3615 | AN40: 5750 | AO40: 7228 | AP40: 36 | AQ40: 379058 | AR40: 381195 | AS40: 382673 | AT40: 384808 | AU40: 386286 | AV40: 36 | AW40: 379058 | AX40: 381195 | AY40: 382673 | AZ40: 384808 | BA40: 386286 | BF40: 2137 | BG40: 3615 | BH40: 5750 | BI40: 7228 | BK40: 0 | BL40: 2137 | BM40: 3615 | BN40: 5750 | BO40: 7228 | BQ40: 36 | BR40: 197.0155925 | BS40: 198.1262994 | BT40: 198.8944906 | BU40: 200.004158 | BV40: 200.7723493 | BX40: 36 | BY40: 295.5233888 | BZ40: 297.1894491 | CA40: 298.341736 | CB40: 300.006237 | CC40: 301.1585239 | CE40: 36 | CF40: 98.50779626 | CG40: 99.06314969 | CH40: 99.44724532 | CI40: 100.002079 | CJ40: 100.3861746 | CL40: 36 | CM40: 260194 | CN40: 349728 | CO40: 349728 | CP40: 7078 | CQ40: 356806 | CR40: 1826 | CS40: 3089 | CT40: 4914 | CU40: 6177 | DA40: 36 | DB40: 1467 | DC40: 2481 | DD40: 3947 | DE40: 4962 | DF40: 1972 | DG40: 3335 | DH40: 5305 | DI40: 6669 | DK40: 260194 | DL40: 349728
A41: 37 | B41: 32136.75 | C41: 32288.83333 | D41: 32394.33333 | E41: 32546.41667 | F41: 32651.83333 | H41: 304467.3333 | I41: 221204.1667 | J41: 304724.9167 | L41: 37 | M41: 32136.75 | N41: 32288.83333 | O41: 32394.33333 | P41: 32546.41667 | Q41: 32651.83333 | S41: 272330.5833 | T41: 189067.4167 | U41: 272588.1667 | V41: 189175.75 | X41: 37 | Y41: 355801 | Z41: 29840 | AA41: 385641 | AB41: 1684 | AC41: 2852 | AD41: 4536 | AE41: 5703 | AG41: 1253 | AH41: 2122 | AI41: 3375 | AJ41: 4243 | AL41: 1825 | AM41: 3091 | AN41: 4916 | AO41: 6181 | AP41: 37 | AQ41: 385641 | AR41: 387466 | AS41: 388732 | AT41: 390557 | AU41: 391822 | AV41: 37 | AW41: 385641 | AX41: 387466 | AY41: 388732 | AZ41: 390557 | BA41: 391822 | BF41: 1825 | BG41: 3091 | BH41: 4916 | BI41: 6181 | BK41: 0 | BL41: 1825 | BM41: 3091 | BN41: 4916 | BO41: 6181 | BQ41: 37 | BR41: 200.4371102 | BS41: 201.3856549 | BT41: 202.043659 | BU41: 202.9922037 | BV41: 203.6496881 | BX41: 37 | BY41: 300.6556653 | BZ41: 302.0784823 | CA41: 303.0654886 | CB41: 304.4883056 | CC41: 305.4745322 | CE41: 37 | CF41: 100.2185551 | CG41: 100.6928274 | CH41: 101.0218295 | CI41: 101.4961019 | CJ41: 101.8248441 | CL41: 37 | CM41: 264712 | CN41: 355801 | CO41: 355801 | CP41: 7201 | CQ41: 363002 | CR41: 1560 | CS41: 2642 | CT41: 4202 | CU41: 5282 | DA41: 37 | DB41: 1253 | DC41: 2122 | DD41: 3375 | DE41: 4243 | DF41: 1684 | DG41: 2852 | DH41: 4536 | DI41: 5703 | DK41: 264712 | DL41: 355801
A42: 38 | B42: 32718.91667 | C42: 32846.25 | D42: 32934.5 | E42: 33061.83333 | F42: 33150.33333 | H42: 260730.5 | I42: 190872.5833 | J42: 260946.0833 | L42: 38 | M42: 32718.91667 | N42: 32846.25 | O42: 32934.5 | P42: 33061.83333 | Q42: 33150.33333 | S42: 228011.5833 | T42: 158153.6667 | U42: 228227.1667 | V42: 158816.9167 | X42: 38 | Y42: 362247 | Z42: 30380 | AA42: 392627 | AB42: 1410 | AC42: 2387 | AD42: 3797 | AE42: 4776 | AG42: 1049 | AH42: 1776 | AI42: 2825 | AJ42: 3553 | AL42: 1528 | AM42: 2587 | AN42: 4115 | AO42: 5177 | AP42: 38 | AQ42: 392627 | AR42: 394155 | AS42: 395214 | AT42: 396742 | AU42: 397804 | AV42: 38 | AW42: 392627 | AX42: 394155 | AY42: 395214 | AZ42: 396742 | BA42: 397804 | BF42: 1528 | BG42: 2587 | BH42: 4115 | BI42: 5177 | BK42: 0 | BL42: 1528 | BM42: 2587 | BN42: 4115 | BO42: 5177 | BQ42: 38 | BR42: 204.0680873 | BS42: 204.8622661 | BT42: 205.4126819 | BU42: 206.2068607 | BV42: 206.7588358 | BX42: 38 | BY42: 306.102131 | BZ42: 307.2933992 | CA42: 308.1190229 | CB42: 309.3102911 | CC42: 310.1382536 | CE42: 38 | CF42: 102.0340437 | CG42: 102.4311331 | CH42: 102.706341 | CI42: 103.1034304 | CJ42: 103.3794179 | CL42: 38 | CM42: 269508 | CN42: 362247 | CO42: 362247 | CP42: 7331 | CQ42: 369578 | CR42: 1306 | CS42: 2211 | CT42: 3517 | CU42: 4423 | DA42: 38 | DB42: 1049 | DC42: 1776 | DD42: 2825 | DE42: 3553 | DF42: 1410 | DG42: 2387 | DH42: 3797 | DI42: 4776 | DK42: 269508 | DL42: 362247
A43: 39 | B43: 33303.5 | C43: 33401.58333 | D43: 33469.41667 | E43: 33567.5 | F43: 33635.5 | H43: 208938.0833 | I43: 154868.5 | J43: 209104 | L43: 39 | M43: 33303.5 | N43: 33401.58333 | O43: 33469.41667 | P43: 33567.5 | Q43: 33635.5 | S43: 175634.5833 | T43: 121565 | U43: 175800.5 | V43: 122029.3333 | X43: 39 | Y43: 368719 | Z43: 30923 | AA43: 399642 | AB43: 1086 | AC43: 1837 | AD43: 2923 | AE43: 3676 | AG43: 808 | AH43: 1367 | AI43: 2175 | AJ43: 2735 | AL43: 1177 | AM43: 1991 | AN43: 3168 | AO43: 3984 | AP43: 39 | AQ43: 399642 | AR43: 400819 | AS43: 401633 | AT43: 402810 | AU43: 403626 | AV43: 39 | AW43: 399642 | AX43: 400819 | AY43: 401633 | AZ43: 402810 | BA43: 403626 | BF43: 1177 | BG43: 1991 | BH43: 3168 | BI43: 3984 | BK43: 0 | BL43: 1177 | BM43: 1991 | BN43: 3168 | BO43: 3984 | BQ43: 39 | BR43: 207.7141372 | BS43: 208.3258836 | BT43: 208.7489605 | BU43: 209.3607069 | BV43: 209.7848233 | BX43: 39 | BY43: 311.5712058 | BZ43: 312.4888254 | CA43: 313.1234407 | CB43: 314.0410603 | CC43: 314.6772349 | CE43: 39 | CF43: 103.8570686 | CG43: 104.1629418 | CH43: 104.3744802 | CI43: 104.6803534 | CJ43: 104.8924116 | CL43: 39 | CM43: 274323 | CN43: 368719 | CO43: 368719 | CP43: 7462 | CQ43: 376181 | CR43: 1006 | CS43: 1702 | CT43: 2708 | CU43: 3405 | DA43: 39 | DB43: 808 | DC43: 1367 | DD43: 2175 | DE43: 2735 | DF43: 1086 | DG43: 1837 | DH43: 2923 | DI43: 3676 | DK43: 274323 | DL43: 368719
A44: 40 | B44: 33901.25 | C44: 33968.33333 | D44: 34014.91667 | E44: 34081.91667 | F44: 34128.5 | H44: 154025.1667 | I44: 117383.5833 | J44: 153989.5833 | L44: 40 | M44: 33901.25 | N44: 33968.33333 | O44: 34014.91667 | P44: 34081.91667 | Q44: 34128.5 | S44: 120123.9167 | T44: 83482.33333 | U44: 120088.3333 | V44: 83595.91667 | X44: 40 | Y44: 375337 | Z44: 31478 | AA44: 406815 | AB44: 743 | AC44: 1258 | AD44: 2000 | AE44: 2516 | AG44: 553 | AH44: 936 | AI44: 1488 | AJ44: 1872 | AL44: 805 | AM44: 1364 | AN44: 2168 | AO44: 2727 | AP44: 40 | AQ44: 406815 | AR44: 407620 | AS44: 408179 | AT44: 408983 | AU44: 409542 | AV44: 40 | AW44: 406815 | AX44: 407620 | AY44: 408179 | AZ44: 408983 | BA44: 409542 | BF44: 805 | BG44: 1364 | BH44: 2168 | BI44: 2727 | BK44: 0 | BL44: 805 | BM44: 1364 | BN44: 2168 | BO44: 2727 | BQ44: 40 | BR44: 211.4423077 | BS44: 211.8607069 | BT44: 212.1512474 | BU44: 212.5691268 | BV44: 212.8596674 | BX44: 40 | BY44: 317.1634615 | BZ44: 317.7910603 | CA44: 318.2268711 | CB44: 318.8536902 | CC44: 319.289501 | CE44: 40 | CF44: 105.7211538 | CG44: 105.9303534 | CH44: 106.0756237 | CI44: 106.2845634 | CJ44: 106.4298337 | CL44: 40 | CM44: 279247 | CN44: 375337 | CO44: 375337 | CP44: 7596 | CQ44: 382933 | CR44: 688 | CS44: 1165 | CT44: 1853 | CU44: 2330 | DA44: 40 | DB44: 553 | DC44: 936 | DD44: 1488 | DE44: 1872 | DF44: 743 | DG44: 1258 | DH44: 2000 | DI44: 2516 | DK44: 279247 | DL44: 375337
A45: 41 | B45: 34512 | C45: 34546.5 | D45: 34570.25 | E45: 34604.66667 | F45: 34628.5 | H45: 96290 | I45: 77074.83333 | J45: 96199 | L45: 41 | M45: 34512 | N45: 34546.5 | O45: 34570.25 | P45: 34604.66667 | Q45: 34628.5 | S45: 61778 | T45: 42562.83333 | U45: 61687 | V45: 42770.25 | X45: 41 | Y45: 382099 | Z45: 32045 | AA45: 414144 | AB45: 382 | AC45: 645 | AD45: 1026 | AE45: 1290 | AG45: 284 | AH45: 480 | AI45: 763 | AJ45: 960 | AL45: 414 | AM45: 699 | AN45: 1112 | AO45: 1398 | AP45: 41 | AQ45: 414144 | AR45: 414558 | AS45: 414843 | AT45: 415256 | AU45: 415542 | AV45: 41 | AW45: 414144 | AX45: 414558 | AY45: 414843 | AZ45: 415256 | BA45: 415542 | BF45: 414 | BG45: 699 | BH45: 1112 | BI45: 1398 | BK45: 0 | BL45: 414 | BM45: 699 | BN45: 1112 | BO45: 1398 | BQ45: 41 | BR45: 215.2515593 | BS45: 215.466736 | BT45: 215.6148649 | BU45: 215.8295218 | BV45: 215.9781705 | BX45: 41 | BY45: 322.8773389 | BZ45: 323.200104 | CA45: 323.4222973 | CB45: 323.7442827 | CC45: 323.9672557 | CE45: 41 | CF45: 107.6257796 | CG45: 107.733368 | CH45: 107.8074324 | CI45: 107.9147609 | CJ45: 107.9890852 | CL45: 41 | CM45: 284278 | CN45: 382099 | CO45: 382099 | CP45: 7733 | CQ45: 389832 | CR45: 353 | CS45: 598 | CT45: 950 | CU45: 1195 | DA45: 41 | DB45: 284 | DC45: 480 | DD45: 763 | DE45: 960 | DF45: 382 | DG45: 645 | DH45: 1026 | DI45: 1290 | DK45: 284278 | DL45: 382099
A46: 42 | B46: 35136.08333 | C46: 35136.08333 | D46: 35136.08333 | E46: 35136.08333 | F46: 35136.08333 | H46: 35136.08333 | I46: 35136.08333 | J46: 35136.08333 | L46: 42 | M46: 35136.08333 | N46: 35136.08333 | O46: 35136.08333 | P46: 35136.08333 | Q46: 35136.08333 | S46: 0 | T46: 0 | U46: 0 | V46: 0 | X46: 42 | Y46: 389008 | Z46: 32625 | AA46: 421633 | AB46: 0 | AC46: 0 | AD46: 0 | AE46: 0 | AG46: 0 | AH46: 0 | AI46: 0 | AJ46: 0 | AL46: 0 | AM46: 0 | AN46: 0 | AO46: 0 | AP46: 42 | AQ46: 421633 | AR46: 421633 | AS46: 421633 | AT46: 421633 | AU46: 421633 | AV46: 42 | AW46: 421633 | AX46: 421633 | AY46: 421633 | AZ46: 421633 | BA46: 421633 | BF46: 0 | BG46: 0 | BH46: 0 | BI46: 0 | BK46: 0 | BL46: 0 | BM46: 0 | BN46: 0 | BO46: 0 | BQ46: 42 | BR46: 219.1439709 | BS46: 219.1439709 | BT46: 219.1439709 | BU46: 219.1439709 | BV46: 219.1439709 | BX46: 42 | BY46: 328.7159563 | BZ46: 328.7159563 | CA46: 328.7159563 | CB46: 328.7159563 | CC46: 328.7159563 | CE46: 42 | CF46: 109.5719854 | CG46: 109.5719854 | CH46: 109.5719854 | CI46: 109.5719854 | CJ46: 109.5719854 | CL46: 42 | CM46: 289418 | CN46: 389008 | CO46: 389008 | CP46: 7873 | CQ46: 396881 | CR46: 0 | CS46: 0 | CT46: 0 | CU46: 0 | DA46: 42 | DB46: - | DC46: - | DD46: - | DE46: - | DF46: 0 | DG46: 0 | DH46: 0 | DI46: 0 | DK46: 289418 | DL46: 389008
A47: 43 | B47: 35916.91667 | C47: 35916.91667 | D47: 35916.91667 | E47: 35916.91667 | F47: 35916.91667 | H47: 35916.91667 | I47: 35916.91667 | J47: 35916.91667 | L47: 43 | M47: 35916.91667 | N47: 35916.91667 | O47: 35916.91667 | P47: 35916.91667 | Q47: 35916.91667 | S47: 0 | T47: 0 | U47: 0 | V47: 0 | X47: 43 | Y47: 397653 | Z47: 33350 | AA47: 431003 | AB47: 0 | AC47: 0 | AD47: 0 | AE47: 0 | AG47: 0 | AH47: 0 | AI47: 0 | AJ47: 0 | AL47: 0 | AM47: 0 | AN47: 0 | AO47: 0 | AP47: 43 | AQ47: 431003 | AR47: 431003 | AS47: 431003 | AT47: 431003 | AU47: 431003 | AV47: 43 | AW47: 431003 | AX47: 431003 | AY47: 431003 | AZ47: 431003 | BA47: 431003 | BF47: 0 | BG47: 0 | BH47: 0 | BI47: 0 | BK47: 0 | BL47: 0 | BM47: 0 | BN47: 0 | BO47: 0 | BQ47: 43 | BR47: 224.0140333 | BS47: 224.0140333 | BT47: 224.0140333 | BU47: 224.0140333 | BV47: 224.0140333 | BX47: 43 | BY47: 336.0210499 | BZ47: 336.0210499 | CA47: 336.0210499 | CB47: 336.0210499 | CC47: 336.0210499 | CE47: 43 | CF47: 112.0070166 | CG47: 112.0070166 | CH47: 112.0070166 | CI47: 112.0070166 | CJ47: 112.0070166 | CL47: 43 | CM47: 295850 | CN47: 397653 | CO47: 397653 | CP47: 8048 | CQ47: 405701 | CR47: 0 | CS47: 0 | CT47: 0 | CU47: 0 | DA47: 43 | DB47: - | DC47: - | DD47: - | DE47: - | DF47: 0 | DG47: 0 | DH47: 0 | DI47: 0 | DK47: 295850 | DL47: 397653
A48: 44 | B48: 36719.41667 | C48: 36719.41667 | D48: 36719.41667 | E48: 36719.41667 | F48: 36719.41667 | H48: 36719.41667 | I48: 36719.41667 | J48: 36719.41667 | L48: 44 | M48: 36719.41667 | N48: 36719.41667 | O48: 36719.41667 | P48: 36719.41667 | Q48: 36719.41667 | S48: 0 | T48: 0 | U48: 0 | V48: 0 | X48: 44 | Y48: 406538 | Z48: 34095 | AA48: 440633 | AB48: 0 | AC48: 0 | AD48: 0 | AE48: 0 | AG48: 0 | AH48: 0 | AI48: 0 | AJ48: 0 | AL48: 0 | AM48: 0 | AN48: 0 | AO48: 0 | AP48: 44 | AQ48: 440633 | AR48: 440633 | AS48: 440633 | AT48: 440633 | AU48: 440633 | AV48: 44 | AW48: 440633 | AX48: 440633 | AY48: 440633 | AZ48: 440633 | BA48: 440633 | BF48: 0 | BG48: 0 | BH48: 0 | BI48: 0 | BK48: 0 | BL48: 0 | BM48: 0 | BN48: 0 | BO48: 0 | BQ48: 44 | BR48: 229.0192308 | BS48: 229.0192308 | BT48: 229.0192308 | BU48: 229.0192308 | BV48: 229.0192308 | BX48: 44 | BY48: 343.5288462 | BZ48: 343.5288462 | CA48: 343.5288462 | CB48: 343.5288462 | CC48: 343.5288462 | CE48: 44 | CF48: 114.5096154 | CG48: 114.5096154 | CH48: 114.5096154 | CI48: 114.5096154 | CJ48: 114.5096154 | CL48: 44 | CM48: 302460 | CN48: 406538 | CO48: 406538 | CP48: 8228 | CQ48: 414766 | CR48: 0 | CS48: 0 | CT48: 0 | CU48: 0 | DA48: 44 | DB48: - | DC48: - | DD48: - | DE48: - | DF48: 0 | DG48: 0 | DH48: 0 | DI48: 0 | DK48: 302460 | DL48: 406538
A49: 45 | B49: 37543.83333 | C49: 37543.83333 | D49: 37543.83333 | E49: 37543.83333 | F49: 37543.83333 | H49: 37543.83333 | I49: 37543.83333 | J49: 37543.83333 | L49: 45 | M49: 37543.83333 | N49: 37543.83333 | O49: 37543.83333 | P49: 37543.83333 | Q49: 37543.83333 | S49: 0 | T49: 0 | U49: 0 | V49: 0 | X49: 45 | Y49: 415666 | Z49: 34860 | AA49: 450526 | AB49: 0 | AC49: 0 | AD49: 0 | AE49: 0 | AG49: 0 | AH49: 0 | AI49: 0 | AJ49: 0 | AL49: 0 | AM49: 0 | AN49: 0 | AO49: 0 | AP49: 45 | AQ49: 450526 | AR49: 450526 | AS49: 450526 | AT49: 450526 | AU49: 450526 | AV49: 45 | AW49: 450526 | AX49: 450526 | AY49: 450526 | AZ49: 450526 | BA49: 450526 | BF49: 0 | BG49: 0 | BH49: 0 | BI49: 0 | BK49: 0 | BL49: 0 | BM49: 0 | BN49: 0 | BO49: 0 | BQ49: 45 | BR49: 234.1611227 | BS49: 234.1611227 | BT49: 234.1611227 | BU49: 234.1611227 | BV49: 234.1611227 | BX49: 45 | BY49: 351.241684 | BZ49: 351.241684 | CA49: 351.241684 | CB49: 351.241684 | CC49: 351.241684 | CE49: 45 | CF49: 117.0805613 | CG49: 117.0805613 | CH49: 117.0805613 | CI49: 117.0805613 | CJ49: 117.0805613 | CL49: 45 | CM49: 309251 | CN49: 415666 | CO49: 415666 | CP49: 8412 | CQ49: 424078 | CR49: 0 | CS49: 0 | CT49: 0 | CU49: 0 | DA49: 45 | DB49: - | DC49: - | DD49: - | DE49: - | DF49: 0 | DG49: 0 | DH49: 0 | DI49: 0 | DK49: 309251 | DL49: 415666
A50: 46 | B50: 38391 | C50: 38391 | D50: 38391 | E50: 38391 | F50: 38391 | H50: 38391 | I50: 38391 | J50: 38391 | L50: 46 | M50: 38391 | N50: 38391 | O50: 38391 | P50: 38391 | Q50: 38391 | S50: 0 | T50: 0 | U50: 0 | V50: 0 | X50: 46 | Y50: 425045 | Z50: 35647 | AA50: 460692 | AL50: 0 | AM50: 0 | AN50: 0 | AO50: 0 | AP50: 46 | AQ50: 460692 | AR50: 460692 | AS50: 460692 | AT50: 460692 | AU50: 460692 | AV50: 46 | AW50: 460692 | AX50: 460692 | AY50: 460692 | AZ50: 460692 | BA50: 460692 | BF50: 0 | BG50: 0 | BH50: 0 | BI50: 0 | BK50: 0 | BL50: 0 | BM50: 0 | BN50: 0 | BO50: 0 | BQ50: 46 | BR50: 239.4449064 | BS50: 239.4449064 | BT50: 239.4449064 | BU50: 239.4449064 | BV50: 239.4449064 | BX50: 46 | BY50: 359.1673597 | BZ50: 359.1673597 | CA50: 359.1673597 | CB50: 359.1673597 | CC50: 359.1673597 | CE50: 46 | CF50: 119.7224532 | CG50: 119.7224532 | CH50: 119.7224532 | CI50: 119.7224532 | CJ50: 119.7224532 | CL50: 46 | CM50: 316229 | CN50: 425045 | CO50: 425045 | CP50: 8602 | CQ50: 433647 | CR50: 0 | CS50: 0 | CT50: 0 | CU50: 0 | DA50: 46 | DB50: - | DC50: - | DD50: - | DE50: - | DF50: 0 | DG50: 0 | DH50: 0 | DI50: 0 | DK50: 316229 | DL50: 425045
A51: 47 | B51: 39074.33333 | C51: 39074.33333 | D51: 39074.33333 | E51: 39074.33333 | F51: 39074.33333 | H51: 39074.33333 | I51: 39074.33333 | J51: 39074.33333 | L51: 47 | M51: 39074.33333 | N51: 39074.33333 | O51: 39074.33333 | P51: 39074.33333 | Q51: 39074.33333 | S51: 0 | T51: 0 | U51: 0 | V51: 0 | X51: 47 | Y51: 432611 | Z51: 36281 | AA51: 468892 | AL51: 0 | AM51: 0 | AN51: 0 | AO51: 0 | AP51: 47 | AQ51: 468892 | AR51: 468892 | AS51: 468892 | AT51: 468892 | AU51: 468892 | AV51: 47 | AW51: 468892 | AX51: 468892 | AY51: 468892 | AZ51: 468892 | BA51: 468892 | BF51: 0 | BG51: 0 | BH51: 0 | BI51: 0 | BK51: 0 | BL51: 0 | BM51: 0 | BN51: 0 | BO51: 0 | BQ51: 47 | BR51: 243.7068607 | BS51: 243.7068607 | BT51: 243.7068607 | BU51: 243.7068607 | BV51: 243.7068607 | BX51: 47 | BY51: 365.5602911 | BZ51: 365.5602911 | CA51: 365.5602911 | CB51: 365.5602911 | CC51: 365.5602911 | CE51: 47 | CF51: 121.8534304 | CG51: 121.8534304 | CH51: 121.8534304 | CI51: 121.8534304 | CJ51: 121.8534304 | CL51: 47 | CM51: 321858 | CN51: 432611 | CO51: 432611 | CP51: 8755 | CQ51: 441366 | CR51: 0 | CS51: 0 | CT51: 0 | CU51: 0 | DA51: 47 | DB51: - | DC51: - | DD51: - | DE51: - | DF51: 0 | DG51: 0 | DH51: 0 | DI51: 0 | DK51: 321858 | DL51: 432611
A52: 48 | B52: 40870.5 | C52: 40870.5 | D52: 40870.5 | E52: 40870.5 | F52: 40870.5 | H52: 40870.5 | I52: 40870.5 | J52: 40870.5 | L52: 48 | M52: 40870.5 | N52: 40870.5 | O52: 40870.5 | P52: 40870.5 | Q52: 40870.5 | S52: 0 | T52: 0 | U52: 0 | V52: 0 | X52: 48 | Y52: 452497 | Z52: 37949 | AA52: 490446 | AL52: 0 | AM52: 0 | AN52: 0 | AO52: 0 | AP52: 48 | AQ52: 490446 | AR52: 490446 | AS52: 490446 | AT52: 490446 | AU52: 490446 | AV52: 48 | AW52: 490446 | AX52: 490446 | AY52: 490446 | AZ52: 490446 | BA52: 490446 | BF52: 0 | BG52: 0 | BH52: 0 | BI52: 0 | BK52: 0 | BL52: 0 | BM52: 0 | BN52: 0 | BO52: 0 | BQ52: 48 | BR52: 254.9095634 | BS52: 254.9095634 | BT52: 254.9095634 | BU52: 254.9095634 | BV52: 254.9095634 | BX52: 48 | BY52: 382.3643451 | BZ52: 382.3643451 | CA52: 382.3643451 | CB52: 382.3643451 | CC52: 382.3643451 | CE52: 48 | CF52: 127.4547817 | CG52: 127.4547817 | CH52: 127.4547817 | CI52: 127.4547817 | CJ52: 127.4547817 | CL52: 48 | CM52: 336653 | CN52: 452497 | CO52: 452497 | CP52: 9158 | CQ52: 461655 | CR52: 0 | CS52: 0 | CT52: 0 | CU52: 0 | DA52: 48 | DB52: - | DC52: - | DD52: - | DE52: - | DF52: 0 | DG52: 0 | DH52: 0 | DI52: 0 | DK52: 336653 | DL52: 452497
A53: 49 | B53: 43613.33333 | C53: 43613.33333 | D53: 43613.33333 | E53: 43613.33333 | F53: 43613.33333 | H53: 43613.33333 | I53: 43613.33333 | J53: 43613.33333 | L53: 49 | M53: 43613.33333 | N53: 43613.33333 | O53: 43613.33333 | P53: 43613.33333 | Q53: 43613.33333 | S53: 0 | T53: 0 | U53: 0 | V53: 0 | X53: 49 | Y53: 482864 | Z53: 40496 | AA53: 523360 | AL53: 0 | AM53: 0 | AN53: 0 | AO53: 0 | AP53: 49 | AQ53: 523360 | AR53: 523360 | AS53: 523360 | AT53: 523360 | AU53: 523360 | AV53: 49 | AW53: 523360 | AX53: 523360 | AY53: 523360 | AZ53: 523360 | BA53: 523360 | BF53: 0 | BG53: 0 | BH53: 0 | BI53: 0 | BK53: 0 | BL53: 0 | BM53: 0 | BN53: 0 | BO53: 0 | BQ53: 49 | BR53: 272.016632 | BS53: 272.016632 | BT53: 272.016632 | BU53: 272.016632 | BV53: 272.016632 | BX53: 49 | BY53: 408.024948 | BZ53: 408.024948 | CA53: 408.024948 | CB53: 408.024948 | CC53: 408.024948 | CE53: 49 | CF53: 136.008316 | CG53: 136.008316 | CH53: 136.008316 | CI53: 136.008316 | CJ53: 136.008316 | CL53: 49 | CM53: 359246 | CN53: 482864 | CO53: 482864 | CP53: 9772 | CQ53: 492636 | CR53: 0 | CS53: 0 | CT53: 0 | CU53: 0 | DA53: 49 | DB53: - | DC53: - | DD53: - | DE53: - | DF53: 0 | DG53: 0 | DH53: 0 | DI53: 0 | DK53: 359246 | DL53: 482864 | DM53: =DL53*1.020238 -> 492636.2016
A54: 50 | B54: 46657.91667 | C54: 46657.91667 | D54: 46657.91667 | E54: 46657.91667 | F54: 46657.91667 | H54: 46657.91667 | I54: 46657.91667 | J54: 46657.91667 | L54: 50 | M54: =$BD54/12 -> 47758.41667 | N54: =$BD54/12 -> 47758.41667 | O54: 47758.41667 | P54: 47758.41667 | Q54: 47758.41667 | S54: 47758.41667 | T54: 47758.41667 | U54: 47758.41667 | V54: 47758.41667 | X54: 50 | Y54: 516572 | Z54: 43323 | AA54: 559895 | AL54: 0 | AM54: 0 | AN54: 0 | AO54: 0 | AP54: 50 | AQ54: 559895 | AR54: 559895 | AS54: 559895 | AT54: 559895 | AU54: 559895 | AV54: 50 | AW54: =$BD54 -> 573101 | AX54: =$BD54 -> 573101 | AY54: 573101 | AZ54: 573101 | BA54: 573101 | BB54: =VLOOKUP(AV54,Pens_grundbeløb,IF(beregningsdato<$DF$3,2,3),FALSE) -> 528756 | BC54: =ROUND(BB54*($AL$4),0) -> 44345 | BD54: =SUM(BB54:BC54) -> 573101 | BF54: 0 | BG54: 0 | BH54: 0 | BI54: 0 | BK54: 573101 | BL54: 573101 | BM54: 573101 | BN54: 573101 | BO54: 573101 | BQ54: 50 | BR54: 291.0057173 | BS54: 291.0057173 | BT54: 291.0057173 | BU54: 291.0057173 | BV54: 291.0057173 | BX54: 50 | BY54: 436.5085759 | BZ54: 436.5085759 | CA54: 436.5085759 | CB54: 436.5085759 | CC54: 436.5085759 | CE54: 50 | CF54: 145.5028586 | CG54: 145.5028586 | CH54: 145.5028586 | CI54: 145.5028586 | CJ54: 145.5028586 | CL54: 50 | CM54: 384324 | CN54: 516572 | CO54: 516572 | CP54: 10454 | CQ54: 527026 | CR54: 0 | CS54: 0 | CT54: 0 | CU54: 0 | DA54: 50 | DB54: - | DC54: - | DD54: - | DE54: - | DF54: 0 | DG54: 0 | DH54: 0 | DI54: 0 | DJ54: 50 | DK54: 393389 | DL54: 528756 | DM54: =DL54*1.020238 -> 539456.9639
A55: 51 | B55: 51537 | C55: 51537 | D55: 51537 | E55: 51537 | F55: 51537 | H55: 51537 | I55: 51537 | J55: 51537 | L55: 51 | M55: =$BD55/12 -> 52924.25 | N55: 52924.25 | O55: 52924.25 | P55: 52924.25 | Q55: 52924.25 | S55: 52924.25 | T55: 52924.25 | U55: 52924.25 | V55: 52924.25 | X55: 51 | Y55: 570591 | Z55: 47853 | AA55: 618444 | AL55: 0 | AM55: 0 | AN55: 0 | AO55: 0 | AP55: 51 | AQ55: 618444 | AR55: 618444 | AS55: 618444 | AT55: 618444 | AU55: 618444 | AV55: 51 | AW55: =$BD55 -> 635091 | AX55: 635091 | AY55: 635091 | AZ55: 635091 | BA55: 635091 | BB55: 585950 | BC55: =ROUND(BB55*($AL$4),0) -> 49141 | BD55: =SUM(BB55:BC55) -> 635091 | BF55: 0 | BG55: 0 | BH55: 0 | BI55: 0 | BK55: 635091 | BL55: 635091 | BM55: 635091 | BN55: 635091 | BO55: 635091 | BQ55: 51 | BR55: 321.4365904 | BS55: 321.4365904 | BT55: 321.4365904 | BU55: 321.4365904 | BV55: 321.4365904 | BX55: 51 | BY55: 482.1548857 | BZ55: 482.1548857 | CA55: 482.1548857 | CB55: 482.1548857 | CC55: 482.1548857 | CE55: 51 | CF55: 160.7182952 | CG55: 160.7182952 | CH55: 160.7182952 | CI55: 160.7182952 | CJ55: 160.7182952 | CL55: 51 | CM55: 424514 | CN55: 570591 | CO55: 570591 | CP55: 11548 | CQ55: 582139 | DA55: 51 | DB55: - | DC55: - | DD55: - | DE55: - | DF55: 0 | DG55: 0 | DH55: 0 | DI55: 0 | DJ55: 51 | DK55: 435941 | DL55: 585950 | DM55: 597808.4561
A56: 52 | B56: 58642.75 | C56: 58642.75 | D56: 58642.75 | E56: 58642.75 | F56: 58642.75 | H56: 58642.75 | I56: 58642.75 | J56: 58642.75 | L56: 52 | M56: 60275.25 | N56: 60275.25 | O56: 60275.25 | P56: 60275.25 | Q56: 60275.25 | S56: 60275.25 | T56: 60275.25 | U56: 60275.25 | V56: 60275.25 | X56: 52 | Y56: 649262 | Z56: 54451 | AA56: 703713 | AL56: 0 | AM56: 0 | AN56: 0 | AO56: 0 | AP56: 52 | AQ56: 703713 | AR56: 703713 | AS56: 703713 | AT56: 703713 | AU56: 703713 | AV56: 52 | AW56: 723303 | AX56: 723303 | AY56: 723303 | AZ56: 723303 | BA56: 723303 | BB56: 667336 | BC56: 55967 | BD56: 723303 | BF56: 0 | BG56: 0 | BH56: 0 | BI56: 0 | BK56: 723303 | BL56: 723303 | BM56: 723303 | BN56: 723303 | BO56: 723303 | BQ56: 52 | BR56: 365.7551975 | BS56: 365.7551975 | BT56: 365.7551975 | BU56: 365.7551975 | BV56: 365.7551975 | BX56: 52 | BY56: 548.6327963 | BZ56: 548.6327963 | CA56: 548.6327963 | CB56: 548.6327963 | CC56: 548.6327963 | CE56: 52 | CF56: 182.8775988 | CG56: 182.8775988 | CH56: 182.8775988 | CI56: 182.8775988 | CJ56: 182.8775988 | CL56: 52 | CM56: 483044 | CN56: 649262 | CO56: 649262 | CP56: 13140 | CQ56: 662402 | DA56: 52 | DB56: - | DC56: - | DD56: - | DE56: - | DF56: 0 | DG56: 0 | DH56: 0 | DI56: 0 | DJ56: 52 | DK56: 496491 | DL56: 667336 | DM56: 680841.546
A57: 53 | B57: 64387.5 | C57: 64387.5 | D57: 64387.5 | E57: 64387.5 | F57: 64387.5 | H57: 64387.5 | I57: 64387.5 | J57: 64387.5 | L57: 53 | M57: 67096.33333 | N57: 67096.33333 | O57: 67096.33333 | P57: 67096.33333 | Q57: 67096.33333 | S57: 67096.33333 | T57: 67096.33333 | U57: 67096.33333 | V57: 67096.33333 | X57: 53 | Y57: 712865 | Z57: 59785 | AA57: 772650 | AL57: 0 | AM57: 0 | AN57: 0 | AO57: 0 | AP57: 53 | AQ57: 772650 | AR57: 772650 | AS57: 772650 | AT57: 772650 | AU57: 772650 | AV57: 53 | AW57: 805156 | AX57: 805156 | AY57: 805156 | AZ57: 805156 | BA57: 805156 | BB57: 742856 | BC57: 62300 | BD57: 805156 | BF57: 0 | BG57: 0 | BH57: 0 | BI57: 0 | BK57: 805156 | BL57: 805156 | BM57: 805156 | BN57: 805156 | BO57: 805156 | BQ57: 53 | BR57: 401.5852391 | BS57: 401.5852391 | BT57: 401.5852391 | BU57: 401.5852391 | BV57: 401.5852391 | BX57: 53 | BY57: 602.3778586 | BZ57: 602.3778586 | CA57: 602.3778586 | CB57: 602.3778586 | CC57: 602.3778586 | CE57: 53 | CF57: 200.7926195 | CG57: 200.7926195 | CH57: 200.7926195 | CI57: 200.7926195 | CJ57: 200.7926195 | CL57: 53 | CM57: 530364 | CN57: 712865 | CO57: 712865 | CP57: 14427 | CQ57: 727292 | DA57: 53 | DB57: - | DC57: - | DD57: - | DE57: - | DF57: 0 | DG57: 0 | DH57: 0 | DI57: 0 | DJ57: 53 | DK57: 552677 | DL57: 742856 | DM57: 757889.9197
A58: 54 | B58: 72046.16667 | C58: 72046.16667 | D58: 72046.16667 | E58: 72046.16667 | F58: 72046.16667 | H58: 72046.16667 | I58: 72046.16667 | J58: 72046.16667 | L58: 54 | M58: 75597.83333 | N58: 75597.83333 | O58: 75597.83333 | P58: 75597.83333 | Q58: 75597.83333 | S58: 75597.83333 | T58: 75597.83333 | U58: 75597.83333 | V58: 75597.83333 | X58: 54 | Y58: 797658 | Z58: 66896 | AA58: 864554 | AL58: 0 | AM58: 0 | AN58: 0 | AO58: 0 | AP58: 54 | AQ58: 864554 | AR58: 864554 | AS58: 864554 | AT58: 864554 | AU58: 864554 | AV58: 54 | AW58: 907174 | AX58: 907174 | AY58: 907174 | AZ58: 907174 | BA58: 907174 | BB58: 836980 | BC58: 70194 | BD58: 907174 | BF58: 0 | BG58: 0 | BH58: 0 | BI58: 0 | BK58: 907174 | BL58: 907174 | BM58: 907174 | BN58: 907174 | BO58: 907174 | BQ58: 54 | BR58: 449.3523909 | BS58: 449.3523909 | BT58: 449.3523909 | BU58: 449.3523909 | BV58: 449.3523909 | BX58: 54 | BY58: 674.0285863 | BZ58: 674.0285863 | CA58: 674.0285863 | CB58: 674.0285863 | CC58: 674.0285863 | CE58: 54 | CF58: 224.6761954 | CG58: 224.6761954 | CH58: 224.6761954 | CI58: 224.6761954 | CJ58: 224.6761954 | CL58: 54 | CM58: 593449 | CN58: 797658 | CO58: 797658 | CP58: 16143 | CQ58: 813801 | DA58: 54 | DB58: - | DC58: - | DD58: - | DE58: - | DF58: 0 | DG58: 0 | DH58: 0 | DI58: 0 | DJ58: 54 | DK58: 622704 | DL58: 836980 | DM58: 853918.8012
A59: 55 | B59: 81252 | C59: 81252 | D59: 81252 | E59: 81252 | F59: 81252 | H59: 81252 | I59: 81252 | J59: 81252 | L59: 55 | M59: 84803.66667 | N59: 84803.66667 | O59: 84803.66667 | P59: 84803.66667 | Q59: 84803.66667 | S59: 84803.66667 | T59: 84803.66667 | U59: 84803.66667 | V59: 84803.66667 | X59: 55 | Y59: 899580 | Z59: 75444 | AA59: 975024 | AL59: 0 | AM59: 0 | AN59: 0 | AO59: 0 | AP59: 55 | AQ59: 975024 | AR59: 975024 | AS59: 975024 | AT59: 975024 | AU59: 975024 | AV59: 55 | AW59: 1017644 | AX59: 1017644 | AY59: 1017644 | AZ59: 1017644 | BA59: 1017644 | BB59: 938902 | BC59: 78742 | BD59: 1017644 | BF59: 0 | BG59: 0 | BH59: 0 | BI59: 0 | BK59: 1017644 | BL59: 1017644 | BM59: 1017644 | BN59: 1017644 | BO59: 1017644 | BQ59: 55 | BR59: 506.7692308 | BS59: 506.7692308 | BT59: 506.7692308 | BU59: 506.7692308 | BV59: 506.7692308 | BX59: 55 | BY59: 760.1538462 | BZ59: 760.1538462 | CA59: 760.1538462 | CB59: 760.1538462 | CC59: 760.1538462 | CE59: 55 | CF59: 253.3846154 | CG59: 253.3846154 | CH59: 253.3846154 | CI59: 253.3846154 | CJ59: 253.3846154 | CL59: 55 | CM59: 669278 | CN59: 899580 | CO59: 899580 | CP59: 18206 | CQ59: 917786 | DA59: 55 | DB59: - | DC59: - | DD59: - | DE59: - | DF59: 0 | DG59: 0 | DH59: 0 | DI59: 0 | DJ59: 55 | DK59: 698533 | DL59: 938902 | DM59: 957903.4987
A60: 56 | B60: 91574.91667 | C60: 91574.91667 | D60: 91574.91667 | E60: 91574.91667 | F60: 91574.91667 | H60: 91574.91667 | I60: 91574.91667 | J60: 91574.91667 | L60: 56 | M60: 95126.83333 | N60: 95126.83333 | O60: 95126.83333 | P60: 95126.83333 | Q60: 95126.83333 | S60: 95126.83333 | T60: 95126.83333 | U60: 95126.83333 | V60: 95126.83333 | X60: 56 | Y60: 1013870 | Z60: 85029 | AA60: 1098899 | AL60: 0 | AM60: 0 | AN60: 0 | AO60: 0 | AP60: 56 | AQ60: 1098899 | AR60: 1098899 | AS60: 1098899 | AT60: 1098899 | AU60: 1098899 | AV60: 56 | AW60: 1141522 | AX60: 1141522 | AY60: 1141522 | AZ60: 1141522 | BA60: 1141522 | BB60: 1053195 | BC60: 88327 | BD60: 1141522 | BF60: 0 | BG60: 0 | BH60: 0 | BI60: 0 | BK60: 1141522 | BL60: 1141522 | BM60: 1141522 | BN60: 1141522 | BO60: 1141522 | BQ60: 56 | BR60: 571.1533264 | BS60: 571.1533264 | BT60: 571.1533264 | BU60: 571.1533264 | BV60: 571.1533264 | BX60: 56 | BY60: 856.7299896 | BZ60: 856.7299896 | CA60: 856.7299896 | CB60: 856.7299896 | CC60: 856.7299896 | CE60: 56 | CF60: 285.5766632 | CG60: 285.5766632 | CH60: 285.5766632 | CI60: 285.5766632 | CJ60: 285.5766632 | CL60: 56 | CM60: 754309 | CN60: 1013870 | CO60: 1013870 | CP60: 20519 | CQ60: 1034389 | DA60: 56 | DB60: - | DC60: - | DD60: - | DE60: - | DF60: 0 | DG60: 0 | DH60: 0 | DI60: 0 | DJ60: 56 | DK60: 783566 | DL60: 1053195 | DM60: 1074509.56
Z61: =ROUND(Y61*valgt_regulering,0) -> 0
Z62: 0
Z63: 0
Z64: 0
Z65: 0
Z66: 0
Z67: 0
Z68: 0
A69: 2006-10-01 | B69: 4131.67 | C69: 4204.98 | D69: 4265.26 | E69: 4358.11 | F69: 4420 | Z69: 0
A70: 2007-04-01 | B70: 4229.54 | C70: 4303.89 | D70: 4365.01 | E70: 4459.17 | F70: 4521.93 | Z70: 0

Sheet Forside
J11: Lønniveau: | K11: 2022-10-01

Sheet Omregningstabel (hidden)
D1: 1.362716 | E1: 1.382496 | F1: 1.398079 | G1: 1.018559 | H1: 1.040662 | I1: 1.051157 | J1: 1.061566 | K1: 1.083422 | L1: 1.08868 | M1: 1.092675 | N1: 1.109523 | O1: 1.120038 | P1: 1.124454
B7: Indtast beløb: | C7: 1000
C10: 1/10 '84
C11: =Beløb -> 1000 | D11: 1/4 '98
B12: 1/4-98 | C12: =Beløb*_1_4_1998 -> 1362.716 | D12: =Beløb -> 1000 | E12: 1/10 '98
B13: 1/10-98 | C13: =Beløb*_1_10_1998 -> 1382.496 | D13: =Beløb/_1_4_1998*_1_10_1998 -> 1014.51513 | E13: =Beløb -> 1000 | F13: 1/4 '99
B14: 1/4-99 | C14: =Beløb*_1_4_1999 -> 1398.079 | D14: =Beløb/_1_4_1998*_1_4_1999 -> 1025.950381 | E14: =Beløb/_1_10_1998*_1_4_1999 -> 1011.271642 | F14: =Beløb -> 1000
B15: Grundbeløb pr. 31/3-00 | C15: =ROUND(C14,-2) -> 1400 | D15: =ROUND(D14,-2) -> 1000 | E15: =ROUND(E14,-2) -> 1000 | F15: =ROUND(F14,-2) -> 1000 | G15: 1/4 '00
B16: 1/4-00 | C16: =Nyt_beløb_1*_1_4_2000 -> 1425.9826 | D16: =Nyt_beløb_2*_1_4_2000 -> 1018.559 | E16: =Nyt_beløb_3*_1_4_2000 -> 1018.559 | F16: =Nyt_beløb_4*_1_4_2000 -> 1018.559 | G16: =Beløb -> 1000 | H16: 1/4 '01
B17: 1/4-01 | C17: =Nyt_beløb_1*_1_4_2001 -> 1456.9268 | D17: =Nyt_beløb_2*_1_4_2001 -> 1040.662 | E17: =Nyt_beløb_3*_1_4_2001 -> 1040.662 | F17: =Nyt_beløb_4*_1_4_2001 -> 1040.662 | G17: =beløb_4_00/_1_4_2000*_1_4_2001 -> 1021.700265 | H17: =Beløb -> 1000 | I17: 1/10 '01
B18: 1/10-01 | C18: =Nyt_beløb_1*_1_10_2001 -> 1471.6198 | D18: =Nyt_beløb_2*_1_10_2001 -> 1051.157 | E18: =Nyt_beløb_3*_1_10_2001 -> 1051.157 | F18: =Nyt_beløb_4*_1_10_2001 -> 1051.157 | G18: =beløb_4_00/_1_4_2000*_1_10_2001 -> 1032.004037 | H18: =beløb_4_01/_1_4_2001*_1_10_2001 -> 1010.084927 | I18: =Beløb -> 1000 | J18: 1/4 '02
B19: 1/4-02 | C19: =Nyt_beløb_1*_1_4_2002 -> 1486.1924 | D19: =Nyt_beløb_2*_1_4_2002 -> 1061.566 | E19: =Nyt_beløb_3*_1_4_2002 -> 1061.566 | F19: =Nyt_beløb_4*_1_4_2002 -> 1061.566 | G19: =beløb_4_00/_1_4_2000*_1_4_2002 -> 1042.223376 | H19: =beløb_4_01/_1_4_2001*_1_4_2002 -> 1020.087214 | I19: =beløb_10_01/_1_10_2001*_1_4_2002 -> 1009.902422 | J19: =Beløb -> 1000 | K19: 1/4 '03
B20: 1/4-03 | C20: =Nyt_beløb_1*_1_4_2003 -> 1516.7908 | D20: =Nyt_beløb_2*_1_4_2003 -> 1083.422 | E20: =Nyt_beløb_3*_1_4_2003 -> 1083.422 | F20: =Nyt_beløb_4*_1_4_2003 -> 1083.422 | G20: =beløb_4_00/_1_4_2000*_1_4_2003 -> 1063.681142 | H20: =beløb_4_01/_1_4_2001*_1_4_2003 -> 1041.08923 | I20: =beløb_10_01/_1_10_2001*_1_4_2003 -> 1030.694749 | J20: =beløb_4_02/_1_4_2002*_1_4_2003 -> 1020.588451 | K20: =Beløb -> 1000 | L20: 1/8 '03
B21: 1/8-03 | C21: =Nyt_beløb_1*_1_8_2003 -> 1524.152 | D21: =Nyt_beløb_2*_1_8_2003 -> 1088.68 | E21: =Nyt_beløb_3*_1_8_2003 -> 1088.68 | F21: =Nyt_beløb_4*_1_8_2003 -> 1088.68 | G21: =beløb_4_00/_1_4_2000*_1_8_2003 -> 1068.843337 | H21: =beløb_4_01/_1_4_2001*_1_8_2003 -> 1046.141783 | I21: =beløb_10_01/_1_10_2001*_1_8_2003 -> 1035.696856 | J21: =beløb_4_02/_1_4_2002*_1_8_2003 -> 1025.541511 | K21: =beløb_4_03/_1_4_2003*_1_8_2003 -> 1004.853141 | L21: =Beløb -> 1000 | M21: 1/10 '03
B22: 1/10-03 | C22: =Nyt_beløb_1*_1_10_2003 -> 1529.745 | D22: =Nyt_beløb_2*_1_10_2003 -> 1092.675 | E22: =Nyt_beløb_3*_1_10_2003 -> 1092.675 | F22: =Nyt_beløb_4*_1_10_2003 -> 1092.675 | G22: =beløb_4_00/_1_4_2000*_1_10_2003 -> 1072.765544 | H22: =beløb_4_01/_1_4_2001*_1_10_2003 -> 1049.980685 | I22: =beløb_4_01/_1_4_2001*_1_10_2003 -> 1049.980685 | J22: =beløb_4_02/_1_4_2002*_1_10_2003 -> 1029.304819 | K22: =beløb_4_03/_1_4_2003*_1_10_2003 -> 1008.540532 | L22: =beløb_8_03/_1_8_2003*_1_10_2003 -> 1003.669582 | M22: =Beløb -> 1000 | N22: 1/4 '04
B23: 1/4 '04 | C23: =Nyt_beløb_1*_1_4_2004 -> 1553.3322 | D23: =Nyt_beløb_2*_1_4_2004 -> 1109.523 | E23: =Nyt_beløb_3*_1_4_2004 -> 1109.523 | F23: =Nyt_beløb_4*_1_4_2004 -> 1109.523 | G23: =beløb_4_00/_1_4_2000*_1_4_2004 -> 1089.30656 | H23: =beløb_4_01/_1_4_2001*_1_4_2004 -> 1066.17038 | I23: =beløb_4_01/_1_4_2001*_1_4_2004 -> 1066.17038 | J23: =beløb_4_02/_1_4_2002*_1_4_2004 -> 1045.175712 | K23: =beløb_4_03/_1_4_2003*_1_4_2004 -> 1024.091259 | L23: =beløb_8_03/_1_8_2003*_1_4_2004 -> 1019.145203 | M23: =beløb_10_03/_1_10_2003*_1_4_2004 -> 1015.41904 | N23: =Beløb -> 1000 | O23: 1/8 '04
B24: 1/8 '04 | C24: =Nyt_beløb_1*_1_8_2004 -> 1568.0532 | D24: =Nyt_beløb_2*_1_8_2004 -> 1120.038 | E24: =Nyt_beløb_3*_1_8_2004 -> 1120.038 | F24: =Nyt_beløb_4*_1_8_2004 -> 1120.038 | G24: =beløb_4_00/_1_4_2000*_1_8_2004 -> 1099.629967 | H24: =beløb_4_01/_1_4_2001*_1_8_2004 -> 1076.274525 | I24: =beløb_4_01/_1_4_2001*_1_8_2004 -> 1076.274525 | J24: =beløb_4_02/_1_4_2002*_1_8_2004 -> 1055.08089 | K24: =beløb_4_03/_1_4_2003*_1_8_2004 -> 1033.796618 | L24: =beløb_8_03/_1_8_2003*_1_8_2004 -> 1028.803689 | M24: =beløb_10_03/_1_10_2003*_1_8_2004 -> 1025.042213 | N24: =beløb_4_04/_1_4_2004*_1_8_2004 -> 1009.477046 | O24: =Beløb -> 1000 | P24: 1/10 '04
B25: 1/10 '04 | C25: =Nyt_beløb_1*_1_10_2004 -> 1574.2356 | D25: =Nyt_beløb_2*_1_10_2004 -> 1124.454 | E25: =Nyt_beløb_3*_1_10_2004 -> 1124.454 | F25: =Nyt_beløb_4*_1_10_2004 -> 1124.454 | G25: =beløb_4_00/_1_4_2000*_1_10_2004 -> 1103.965504 | H25: =beløb_4_01/_1_4_2001*_1_10_2004 -> 1080.517978 | I25: =beløb_4_01/_1_4_2001*_1_10_2004 -> 1080.517978 | J25: =beløb_4_02/_1_4_2002*_1_10_2004 -> 1059.240782 | K25: =beløb_4_03/_1_4_2003*_1_10_2004 -> 1037.872593 | L25: =beløb_8_03/_1_8_2003*_1_10_2004 -> 1032.859977 | M25: =beløb_10_03/_1_10_2003*_1_10_2004 -> 1029.083671 | N25: =beløb_4_04/_1_4_2004*_1_10_2004 -> 1013.457134 | O25: =beløb_8_04/_1_8_2004*_1_10_2004 -> 1003.942723 | P25: =Beløb -> 1000

Sheet Tillæg_trin (hidden)
A1: 3
B3: Valgt lønniveau: | C3: =Forside!K11 -> 2022-10-01
B5: Løngruppe | D5: 3
B6: Timer/uge | D6: 37
B7: Pensions-% inkl. evt. fritvalgs-% | D7: 13.89
B8: Særlig feriegodtgørelse, aktuel pct. | D8: 1.95
B10: Stigning: | C10: Fra | D10: Til
B11: Løntrin | C11: 18 | D11: 19
B13: Løn | C13: =(VLOOKUP(til_trin,Lønark!A4:F60,løngruppe+2,FALSE)-VLOOKUP(fra_trin,Lønark!A4:F60,løngruppe+2,FALSE))/37*timetal*12 -> 4144
B14: Pension inkl. evt. fritvalgstillæg | C14: =(VLOOKUP(til_trin,Lønark!L4:Q60,løngruppe+2,FALSE)-VLOOKUP(fra_trin,Lønark!L4:Q60,løngruppe+2,FALSE))/37*timetal*pensionsstatus%*12 -> 575.6016
B15: Ferietillæg | C15: =ferie_pct%*C13 -> 80.808
B16: Årlig bruttoudgift i alt | C16: =ROUND(SUM(C13:C15),0) -> 4800

Sheet Tillæg_kr (hidden)
A1: 2
C3: Valgt lønniveau: | D3: =Forside!K11 -> 2022-10-01
A5: =VLOOKUP(dummy,reg_procenter,2,FALSE) ->  | C5: Årligt beløb, 31.3.2000 niveau | D5: 12900
C6: Timer/uge | D6: 30
C7: Pension-% inkl. evt. fritvalgs-% | D7: 13.89
C8: Særlig feriegodtg., aktuel pct. | D8: 1.95
C11: bruttoudgift / år | D11: bruttoudgift / md
B12: Løn | C12: =kr*valgt_regulering/37*timetal -> 11336.65249 | D12: =beløb/12 -> 944.7210405
B13: Pension inkl. evt. fritvalgstillæg | C13: =beløb*pensionsstatus% -> 1574.66103 | D13: =C13/12 -> 131.2217525
B14: Ferietillæg | C14: =D8%*(C12) -> 221.0647235 | D14: =C14/12 -> 18.42206029
B15: Bruttoudgift i alt | C15: =ROUND(SUM(C12:C14),0) -> 13132 | D15: =ROUND(SUM(D12:D14),0) -> 1094

Sheet Omregner_gl. til nyt_niveau
B2: Omregner A - fra grundbeløb 31.3.2000 niveau til nyt grundbeløb pr. 31.3.2018 - RLTN | J2: Omregner B - fra nutidskroner tilbage til nyt grundbeløb pr. 31.3.2018 - RLTN
B4: Brug omregneren, når satser og tillæg i lokale aftaler skal omlægges til ny niveau på regionsområdet | J4: Brug omregneren, når du vil finde ud af hvad et givent beløb i nutidskroner svarer til i nyt grundbeløb
B8: Kun ÅRLIGE grundbeløb; Indtast årligt grundbeløb pr. 31.3.2000 | D8: Nyt grundbeløb pr. 31.3.2018 | F8: ="Aktuelt beløb pr. "&DAY(beregningsdato)&"."&MONTH(beregningsdato)&"."&YEAR(beregningsdato) -> Aktuelt beløb pr. 1.10.2022 | J8: ="Tillæg pr. år; Indtast beløb i nutidskroner ("&DAY(beregningsdato)&"."&MONTH(beregningsdato)&"."&YEAR(beregningsdato)&")" -> Tillæg pr. år; Indtast beløb i nutidskroner (1.10.2022) | L8: svarer til: årligt grundbeløb (31/3-2018)
B9: 1500 | C9: => | D9: =ROUND(B9*1.344105,0) -> 2016 | E9: => | F9: =ROUND(D9*valgt_regulering,2) -> 2185.07 | J9: 31000 | K9: => | L9: =ROUND(J9/1.020238,0) -> 30385
B13: Grundbeløb pr. måned/uge eller pr. tidsenhed Indtast grundbeløb pr. 31.3.2000 | D13: Nyt grundbeløb pr. 31.3.2018 | F13: ="Aktuelt beløb pr. "&DAY(beregningsdato)&"."&MONTH(beregningsdato)&"."&YEAR(beregningsdato) -> Aktuelt beløb pr. 1.10.2022 | J13: ="Tillæg pr. måned/uge eller pr. tidsenhed; Indtast beløb i nutidskroner ("&DAY(beregningsdato)&"."&MONTH(beregningsdato)&"."&YEAR(beregningsdato)&")" -> Tillæg pr. måned/uge eller pr. tidsenhed; Indtast beløb i nutidskroner (1.10.2022) | L13: svarer til: grundbeløb (31/3-2018)
B14: 34.85 | C14: => | D14: =ROUND(B14*1.344105,2) -> 46.84 | E14: => | F14: =ROUND(D14*valgt_regulering,2) -> 50.77 | J14: 47.8 | K14: => | L14: =J14/valgt_regulering -> 44.10139261

Sheet Tid op_ned
A1: 2 | B1: Valgt lønniveau: | C1: =Forside!K11 -> 2022-10-01
B3: Grundoplysninger:
B4: Løngruppe | C4: 0
B5: Pensions-% inkl. evt. fritvalgs-% | C5: 14.7
B6: Særlig feriegodtgørelse, aktuel procent | C6: 1.95
B9: Lønsammensætning (trin i alt og grundbeløb i alt) | C9: Før ændring | E9: Efter ændring
B11: Løndele: | C11: I alt
B13: Løntrin - centralt og lokalt aftalte | C13: 22 | E13: 22
A15: 2018-10-01 | B15: =IF(C1<A15,"Tillæg (grundbeløb 31.3.2000) kr./år centralt og lokalt aftalte","Tillæg (grundbeløb 31.3.2018) kr./år centralt og lokalt aftalte") -> Tillæg (grundbeløb 31.3.2018) kr./år centralt og lokalt aftalte | C15: 9192
C18: Før ændring | E18: Efter ændring | H18: Difference
B19: Timer/uge | C19: 37 | E19: 30 | H19: =C19-timetal_ny -> 7
B21: Fast månedsløn | C21: =(VLOOKUP(C13,Lønkort_løn,$C$4+2,FALSE)+((C15)*valgt_regulering))/12/37*C19 -> 25939.07469 | E21: =(VLOOKUP(E13,Lønkort_løn,$C$4+2,FALSE)+((E15)*valgt_regulering))/12/37*E19 -> 20358.51351 | H21: =E21-C21 -> -5580.561176
B22: Pension inkl. evt. fritvalgstillæg | C22: =((VLOOKUP(C13,Lønkort_pens,$C$4+2,FALSE)+((C15)*valgt_regulering))/12/37*C19*$C$5%) -> 3813.043979 | E22: =((VLOOKUP(E13,Lønkort_pens,$C$4+2,FALSE)+((E15)*valgt_regulering))/12/37*E19*$C$5%) -> 2992.701486 | H22: =E22-C22 -> -820.3424928
B23: Ferietillæg | C23: =$C$6%*C21 -> 505.8119564 | E23: =$C$6%*E21 -> 396.9910135 | H23: =E23-C23 -> -108.8209429
B24: Månedsløn, brutto | C24: =SUM(C21:C23) -> 30257.93063 | E24: =SUM(E21:E23) -> 23748.20601 | H24: =E24-C24 -> -6509.724612
B26: Fast løn, år | C26: =(VLOOKUP(C13,Lønkort_løn,$C$4+2,FALSE)+((C15)*valgt_regulering))/37*C19 -> 311268.8963 | D26: =D21*12 -> 0 | E26: =(VLOOKUP(E13,Lønkort_løn,$C$4+2,FALSE)+((E15)*valgt_regulering))/37*E19 -> 244302.1622 | H26: =E26-C26 -> -66966.73411
B27: Pension inkl. evt. fritvalgstillæg, år | C27: =((VLOOKUP(C13,Lønkort_pens,$C$4+2,FALSE)+((C15)*valgt_regulering))/37*C19*$C$5%) -> 45756.52775 | D27: 0 | E27: =((VLOOKUP(E13,Lønkort_pens,$C$4+2,FALSE)+((E15)*valgt_regulering))/37*E19*$C$5%) -> 35912.41784 | H27: =E27-C27 -> -9844.109914
B28: Ferietillæg, år | C28: =C23*12 -> 6069.743477 | E28: =E23*12 -> 4763.892162 | H28: =E28-C28 -> -1305.851315
B29: Årsløn, brutto | C29: =SUM(C26:C28) -> 363095.1675 | E29: =SUM(E26:E28) -> 284978.4722 | H29: =E29-C29 -> -78116.69534
B31: Timeløn | C31: =ROUND((VLOOKUP(C13,Lønkort_løn,$C$4+2,FALSE)+((C15)*valgt_regulering))/1924,2) -> 161.78 | D31: =D26/timetal_ny*37/1924 -> 0 | E31: =ROUND((VLOOKUP(E13,Lønkort_løn,$C$4+2,FALSE)+((E15)*valgt_regulering))/1924,2) -> 156.6 | H31: =E31-C31 -> -5.18

Sheet Samlet_omk
A1: 2 | B1: Valgt lønniveau: | C1: =Forside!K11 -> 2022-10-01
B3: Løngruppe | C3: 0
B4: Timer/uge | C4: 37
B5: Pensions-% inkl. evt. fritvalgs-% | C5: 13.89
B6: Særlig feriegodtgørelse, aktuel pct. | C6: 1.95
B8: Løntrin | C8: 22
A10: 2018-10-01 | B10: =IF(C1<A10,"Reguleret tillæg (niveau 31.3.2000) kr./år","Reguleret tillæg (niveau 31.3.2018) kr./år") -> Reguleret tillæg (niveau 31.3.2018) kr./år
B13: Løn/måned | C13: =(VLOOKUP(fra_trin,Lønkort_løn,løngruppe+2,FALSE)+(C10*valgt_regulering))/12/37*timetal -> 25108.83333
B14: Pension inkl. evt. fritvalgstillæg | C14: =(VLOOKUP(fra_trin,Lønkort_pens,løngruppe+2,FALSE)+(C10*valgt_regulering))/12/37*timetal*pensionsstatus% -> 3487.61695
B15: Ferietillæg | C15: =C6%*C13 -> 489.62225
B16: Månedlig bruttoudgift i alt | C16: =SUM(C13:C15) -> 29086.07253
B18: Løn/år | C18: =(VLOOKUP(fra_trin,Lønkort_løn,løngruppe+2,FALSE)+(C10*valgt_regulering))/37*timetal -> 301306
B19: Pension inkl. evt. fritvalgstillæg | C19: =(VLOOKUP(fra_trin,Lønkort_pens,løngruppe+2,FALSE)+(C10*valgt_regulering))/37*timetal*pensionsstatus% -> 41851.4034
B20: Ferietillæg | C20: =C15*12 -> 5875.467
B21: Årlig bruttoudgift i alt | C21: =SUM(C18:C20) -> 349032.8704
B23: Timeløn | C23: =ROUND(VLOOKUP(fra_trin,Lønark!A4:AU60,løngruppe+43,FALSE)/1924,2)+ROUND(C10*valgt_regulering/1924,2) -> 156.6

Sheet Omregner_00_niveau
L1: 2018-10-01
L2: =IF(F11<L1,"00","18") -> 18
D11: Valgt lønniveau: | F11: =Forside!K11 -> 2022-10-01 | H11: Timetal: | I11: 37
B13: ="1) Grundbeløb pr. 31-3-20"&L2&" omregnet til nutidskr." -> 1) Grundbeløb pr. 31-3-2018 omregnet til nutidskr.
C14: Årligt grundbeløb: | E14: 30377
E16: år | F16: måned
C17: Aktuelt beløb | E17: =ROUND(kr_omregnes*valgt_regulering,0)/37*I11 -> 32925 | F17: =ROUND(kr_omregnes*valgt_regulering,2)/37*I11/12 -> 2743.716667
B20: ="2) Beløb der skal omregnes til '31-3-20"&L2&"-niveau'" -> 2) Beløb der skal omregnes til '31-3-2018-niveau'
C21: Månedligt beløb | E21: 139.5
E23: år | F23: måned
C24: ="Grundbeløb pr. 31-3-20"&L2 -> Grundbeløb pr. 31-3-2018 | E24: =ROUND(E21*12/valgt_regulering,0)/I11*37 -> 1544 | F24: =ROUND(E21*12/valgt_regulering,2)/I11*37/12 -> 128.7058333
